{"text_format":"1","workbook":"xlsx","n_sheets":8,"sheets":["2011","2010","2009","2008","2007","2006","2005","Augusta"],"not_rendered":{"charts":0,"images":12,"macros":1,"external_links":0,"defined_names":1,"comments":6,"pivot_tables":0},"unopened":[],"bounds":{"document_bytes":16777216,"sheet_cells":100000,"rows_first":2000,"rows_last":500,"rows_between":2000,"halvings":0,"cell_chars":16384,"cell_head_chars":4096},"cells_cut":0,"cells_raw":0,"read":"whole","date_system":"1900"}

{"sheet":"2011","index":0,"n_rows":72,"n_cols":48,"rows_kept":72,"cut":false,"hidden":false,"merged":[[0,1,5,1],[0,2,5,41],[6,2,8,2],[6,3,8,3],[6,5,8,5],[6,31,8,31],[6,7,8,7],[6,9,8,9],[6,11,8,11],[6,13,8,13],[49,0,49,1],[45,0,45,42],[0,0,11,0],[46,0,46,1],[6,4,8,4],[6,6,8,6],[47,0,47,1],[48,0,48,1],[8,1,11,1],[6,8,8,8],[6,15,8,15],[6,17,8,17],[6,20,8,20],[6,12,8,12],[6,18,8,18],[6,14,8,14],[6,16,8,16],[6,21,8,21],[6,10,8,10],[6,19,8,19],[6,36,8,36],[6,23,8,23],[6,30,8,30],[6,32,8,32],[6,29,8,29],[6,35,8,35],[6,25,8,25],[6,22,8,22],[6,37,8,37],[6,40,8,40],[6,33,8,33],[6,24,8,24],[6,39,8,39],[6,34,8,34],[6,38,8,38],[6,28,8,28],[6,26,8,26],[3,55,5,55],[6,27,8,27],[11,61,13,61],[3,59,5,59],[3,58,5,58],[6,41,8,41],[3,57,5,57],[11,64,13,64],[11,62,13,62],[6,42,11,42],[11,54,13,54],[11,69,13,69],[11,65,13,65],[11,56,13,56],[11,57,13,57],[3,72,5,72],[3,67,5,67],[3,63,5,63],[3,68,5,68],[3,66,5,66],[3,65,5,65],[3,71,5,71],[3,70,5,70],[3,69,5,69],[3,85,5,85],[11,75,13,75],[3,73,5,73],[3,80,5,80],[11,78,13,78],[11,79,13,79],[3,74,5,74],[11,73,13,73],[11,77,13,77],[3,82,5,82],[11,81,13,81],[11,89,13,89],[3,83,5,83],[11,86,13,86],[11,87,13,87],[3,84,5,84],[11,84,13,84],[11,85,13,85],[11,83,13,83]]}
[null,null,"Masters Friday 2011"]
[]
[]
[]
[]
[]
[null,null,"Pine Forest Score","CABRERA","CHOI","CINK","CLARK","COUPLES","DONALD","ELS","FOWLER","GOOSEN","HARRINGTON","IMMELMAN","ISHIKAWA","JOHNSON, D","KAYMER","KIM","KUCHAR","LAIRD","MAHAN","MARINO","MCDOWELL","MCILROY","MOLINARI F","MOORE","MICKELSON","O'HAIR","OVERTON","POULTER","ROSE","SCHWARTZEL","SINGH","TOMS","VILLEGAS","WATNEY","WATSON B","WATSON T","WESTWOOD","WOODLAND","WOODS","YANG","Combined MFC & PGA Totals"]
[]
[null,"MFC Golfer"]
[null,null,"Thursday",-1,-5,-1,1,-1,0,3,-2,-2,5,-3,-1,2,6,1,-4,2,3,2,2,-7,2,-2,-2,-2,1,2,1,-3,4,0,-2,0,1,7,0,-3,-1,-5]
[null,null,"Friday",-2,-2,3,1,-4,-4,-2,-3,6,0,1,-1,-4,0,1,3,-3,-1,-1,1,-3,-1,1,0,4,0,-3,-1,-1,6,-3,5,0,-1,0,-5,1,-6,0]
[null,null,"Thru",{"$f":"VLOOKUP(D$7,$AT:$AV,3,FALSE)","v":"F"},{"$f":"VLOOKUP(E$7,$AT:$AV,3,FALSE)","v":"F"},"F","F","F","F","F","F","F","F","F","F","F","F","F","F","F","F","F","F","F","F","F","F","F","F","F","F","F","F","F","F","F","F","F","F","F","F","F"]
[1,"Mike Gandolfo**",-7.5,null,{"$f":"E$11+E$10","v":-7},null,null,null,null,null,null,null,null,null,null,null,null,{"$f":"R$11+R$10","v":2},null,null,null,null,null,null,null,null,null,null,null,null,null,null,null,null,null,null,null,null,null,null,{"$f":"AO$11+AO$10","v":-7},{"$f":"AP$11+AP$10","v":-5},{"$f":"SUM(C13:AP13)","v":-24.5}]
[{"$f":"A13+1","v":2},"Mark McNulty",-6,null,null,null,null,{"$f":"H$11+H$10","v":-5},null,null,null,null,null,null,{"$f":"O$11+O$10","v":-2},null,null,null,null,null,null,null,null,null,null,null,null,null,null,null,null,null,null,null,null,{"$f":"AJ$11+AJ$10","v":0},null,null,null,null,{"$f":"AO$11+AO$10","v":-7},null,-20]
[{"$f":"A14+1","v":3},"Mike Maggi",-9,{"$f":"D$11+D$10","v":-3},null,null,null,null,{"$f":"I$11+I$10","v":-4},null,null,null,null,null,{"$f":"O$11+O$10","v":-2},null,null,null,null,null,null,null,null,null,null,null,null,null,null,null,null,null,null,null,null,null,{"$f":"AK$11+AK$10","v":0},null,null,null,null,null,-18]
[4,"Don Vrba",-3,{"$f":"D$11+D$10","v":-3},{"$f":"E$11+E$10","v":-7},null,null,null,null,null,null,null,null,null,null,null,null,{"$f":"R$11+R$10","v":2},null,null,null,null,null,null,null,null,null,null,null,null,null,null,null,null,null,null,null,null,{"$f":"AM$11+AM$10","v":-5},null,null,null,-16]
[5,"Davis Scarborough",-10.5,null,null,null,null,null,null,null,null,null,null,null,null,{"$f":"P$11+P$10","v":-2},null,null,null,null,null,null,null,null,null,{"$f":"Z$11+Z$10","v":-1},{"$f":"AA$11+AA$10","v":-2},null,null,null,null,null,null,null,null,null,{"$f":"AK$11+AK$10","v":0},null,null,null,null,null,-15.5]
[6,"Tom Pope",-1.5,null,{"$f":"E$11+E$10","v":-7},null,null,null,null,null,null,null,null,null,null,{"$f":"P$11+P$10","v":-2},null,null,null,null,null,null,null,null,null,null,{"$f":"AA$11+AA$10","v":-2},null,null,null,null,null,null,null,null,{"$f":"AJ$11+AJ$10","v":0},null,null,null,null,null,null,-12.5,null,"Robert Allenby","Allenby",{"$f":"IF(VLOOKUP($AS18,Augusta!$B:$I,6,FALSE)=\"E\",0,VLOOKUP($AS18,Augusta!$B:$I,6,FALSE))","v":3},{"$f":"VLOOKUP($AS18,Augusta!$B:$I,7,FALSE)","v":"F"}]
[7,"Carl Berlinger",-12,null,null,null,null,null,null,null,null,null,null,null,null,null,null,null,null,null,{"$f":"U$11+U$10","v":2},null,null,null,null,null,{"$f":"AA$11+AA$10","v":-2},null,null,null,null,null,null,null,null,{"$f":"AJ$11+AJ$10","v":0},{"$f":"AK$11+AK$10","v":0},null,null,null,null,null,-12,null,"Angel Cabrera","Cabrera",{"$f":"IF(VLOOKUP($AS19,Augusta!$B:$I,6,FALSE)=\"E\",0,VLOOKUP($AS19,Augusta!$B:$I,6,FALSE))","v":-1},{"$f":"VLOOKUP($AS19,Augusta!$B:$I,7,FALSE)","v":"F"}]
[8,"Andy Turner",-9,null,null,null,null,null,null,null,null,null,null,null,null,{"$f":"P$11+P$10","v":-2},null,null,null,null,{"$f":"U$11+U$10","v":2},null,null,null,null,null,{"$f":"AA$11+AA$10","v":-2},null,null,null,null,null,null,null,null,{"$f":"AJ$11+AJ$10","v":0},null,null,null,null,null,null,-11,null,"Chad Campbell","Campbell",{"$f":"IF(VLOOKUP($AS20,Augusta!$B:$I,6,FALSE)=\"E\",0,VLOOKUP($AS20,Augusta!$B:$I,6,FALSE))","v":{"$error":"#N/A"}},{"$f":"VLOOKUP($AS20,Augusta!$B:$I,7,FALSE)","v":{"$error":"#N/A"}}]
[9,"Kim Phillips",0,null,null,null,null,null,null,null,{"$f":"K$11+K$10","v":-5},null,null,null,null,{"$f":"P$11+P$10","v":-2},null,null,null,null,null,null,null,null,null,null,{"$f":"AA$11+AA$10","v":-2},null,null,null,null,null,null,null,null,{"$f":"AJ$11+AJ$10","v":0},null,null,null,null,null,null,-9,null,"Paul Casey","Casey",{"$f":"IF(VLOOKUP($AS21,Augusta!$B:$I,6,FALSE)=\"E\",0,VLOOKUP($AS21,Augusta!$B:$I,6,FALSE))","v":-2},{"$f":"VLOOKUP($AS21,Augusta!$B:$I,7,FALSE)","v":"F"}]
[10,"Mark Murdock",-3,null,null,null,null,null,null,null,{"$f":"K$11+K$10","v":-5},null,null,null,null,null,null,null,{"$f":"S$11+S$10","v":-1},{"$f":"T$11+T$10","v":-1},null,null,null,null,null,null,null,null,{"$f":"AC$11+AC$10","v":1},null,null,null,null,null,null,null,null,null,null,null,null,null,-9,null,"K.J. Choi","Choi",{"$f":"IF(VLOOKUP($AS22,Augusta!$B:$I,6,FALSE)=\"E\",0,VLOOKUP($AS22,Augusta!$B:$I,6,FALSE))","v":-5},{"$f":"VLOOKUP($AS22,Augusta!$B:$I,7,FALSE)","v":"F"}]
[11,"Ronny Byrd**",-9,null,null,null,null,null,null,null,null,null,null,null,null,null,null,null,null,null,{"$f":"U$11+U$10","v":2},null,null,null,null,null,{"$f":"AA$11+AA$10","v":-2},null,null,null,{"$f":"AE$11+AE$10","v":0},null,null,null,null,{"$f":"AJ$11+AJ$10","v":0},null,null,null,null,null,null,-9,null,"Fred Couples","Couples",{"$f":"IF(VLOOKUP($AS23,Augusta!$B:$I,6,FALSE)=\"E\",0,VLOOKUP($AS23,Augusta!$B:$I,6,FALSE))","v":-1},{"$f":"VLOOKUP($AS23,Augusta!$B:$I,7,FALSE)","v":"F"}]
[12,"Tim Colson",-7.5,null,null,null,null,null,null,{"$f":"J$11+J$10","v":1},null,null,null,null,null,{"$f":"P$11+P$10","v":-2},null,null,null,null,null,null,null,null,null,null,{"$f":"AA$11+AA$10","v":-2},{"$f":"AB$11+AB$10","v":2},null,null,null,null,null,null,null,null,null,null,null,null,null,null,-8.5,null,"Ben Curtis","Curtis",{"$f":"IF(VLOOKUP($AS24,Augusta!$B:$I,6,FALSE)=\"E\",0,VLOOKUP($AS24,Augusta!$B:$I,6,FALSE))","v":{"$error":"#N/A"}},{"$f":"VLOOKUP($AS24,Augusta!$B:$I,7,FALSE)","v":{"$error":"#N/A"}}]
[13,"Mark Ingebrigtson",-6,null,null,null,null,null,null,null,null,null,null,null,null,null,null,{"$f":"R$11+R$10","v":2},null,null,null,null,null,null,null,null,{"$f":"AA$11+AA$10","v":-2},null,null,null,null,null,null,null,null,{"$f":"AJ$11+AJ$10","v":0},null,null,null,{"$f":"AN$11+AN$10","v":-2},null,null,-8,null,"Luke Donald","Donald",{"$f":"IF(VLOOKUP($AS25,Augusta!$B:$I,6,FALSE)=\"E\",0,VLOOKUP($AS25,Augusta!$B:$I,6,FALSE))","v":0},{"$f":"VLOOKUP($AS25,Augusta!$B:$I,7,FALSE)","v":"F"}]
[14,"Robert Barnes",-3,null,null,null,null,{"$f":"H$11+H$10","v":-5},null,{"$f":"J$11+J$10","v":1},null,{"$f":"L$11+L$10","v":4},null,null,null,null,null,null,null,null,null,null,null,null,null,null,null,null,null,null,null,null,null,null,null,null,null,null,{"$f":"AM$11+AM$10","v":-5},null,null,null,-8,null,"David Duval","Duval",{"$f":"IF(VLOOKUP($AS26,Augusta!$B:$I,6,FALSE)=\"E\",0,VLOOKUP($AS26,Augusta!$B:$I,6,FALSE))","v":{"$error":"#N/A"}},{"$f":"VLOOKUP($AS26,Augusta!$B:$I,7,FALSE)","v":{"$error":"#N/A"}}]
[15,"John Phillips",-7.5,null,null,null,null,null,null,null,null,null,{"$f":"M$11+M$10","v":5},null,null,{"$f":"P$11+P$10","v":-2},null,null,null,null,null,null,null,null,null,null,{"$f":"AA$11+AA$10","v":-2},null,null,{"$f":"AD$11+AD$10","v":-1},null,null,null,null,null,null,null,null,null,null,null,null,-7.5,null,"Ernie Els","Els",{"$f":"IF(VLOOKUP($AS27,Augusta!$B:$I,6,FALSE)=\"E\",0,VLOOKUP($AS27,Augusta!$B:$I,6,FALSE))","v":3},{"$f":"VLOOKUP($AS27,Augusta!$B:$I,7,FALSE)","v":"F"}]
[16,"Matt Blackmon",-4.5,null,null,null,null,null,null,null,null,null,null,null,null,null,null,null,null,null,{"$f":"U$11+U$10","v":2},null,null,null,null,null,{"$f":"AA$11+AA$10","v":-2},null,null,null,null,null,null,{"$f":"AH$11+AH$10","v":-3},null,{"$f":"AJ$11+AJ$10","v":0},null,null,null,null,null,null,-7.5,null,"Ross Fisher","Fisher",{"$f":"IF(VLOOKUP($AS28,Augusta!$B:$I,6,FALSE)=\"E\",0,VLOOKUP($AS28,Augusta!$B:$I,6,FALSE))","v":-3},{"$f":"VLOOKUP($AS28,Augusta!$B:$I,7,FALSE)","v":"F"}]
[17,"Craig Heiser",-3,null,null,null,null,null,null,null,{"$f":"K$11+K$10","v":-5},null,null,null,null,null,null,null,{"$f":"S$11+S$10","v":-1},null,{"$f":"U$11+U$10","v":2},null,null,null,null,null,null,null,null,null,null,null,null,null,null,{"$f":"AJ$11+AJ$10","v":0},null,null,null,null,null,null,-7,null,"Jim Furyk","Furyk",{"$f":"IF(VLOOKUP($AS29,Augusta!$B:$I,6,FALSE)=\"E\",0,VLOOKUP($AS29,Augusta!$B:$I,6,FALSE))","v":0},{"$f":"VLOOKUP($AS29,Augusta!$B:$I,7,FALSE)","v":"F"}]
[18,"Jeff Miers",-4.5,null,null,null,null,null,null,null,null,null,null,null,null,{"$f":"P$11+P$10","v":-2},null,{"$f":"R$11+R$10","v":2},null,null,null,null,null,null,null,null,{"$f":"AA$11+AA$10","v":-2},null,null,null,null,null,null,null,null,null,{"$f":"AK$11+AK$10","v":0},null,null,null,null,null,-6.5,null,"Sergio Garcia","Garcia",{"$f":"IF(VLOOKUP($AS30,Augusta!$B:$I,6,FALSE)=\"E\",0,VLOOKUP($AS30,Augusta!$B:$I,6,FALSE))","v":-3},{"$f":"VLOOKUP($AS30,Augusta!$B:$I,7,FALSE)","v":"F"}]
[19,"Peter Vescovo",-1.5,null,null,null,null,null,null,null,null,null,null,null,null,null,null,null,{"$f":"S$11+S$10","v":-1},null,null,{"$f":"V$11+V$10","v":1},null,null,null,{"$f":"Z$11+Z$10","v":-1},null,null,null,null,null,{"$f":"AF$11+AF$10","v":-4},null,null,null,null,null,null,null,null,null,null,-6.5,null,"Retief Goosen","Goosen",{"$f":"IF(VLOOKUP($AS31,Augusta!$B:$I,6,FALSE)=\"E\",0,VLOOKUP($AS31,Augusta!$B:$I,6,FALSE))","v":-2},{"$f":"VLOOKUP($AS31,Augusta!$B:$I,7,FALSE)","v":"F"}]
[20,"Don Ashley",1.5,null,null,null,null,null,null,null,null,null,null,{"$f":"N$11+N$10","v":-2},null,{"$f":"P$11+P$10","v":-2},null,null,null,null,null,null,null,null,null,null,{"$f":"AA$11+AA$10","v":-2},null,null,null,null,null,null,null,null,{"$f":"AJ$11+AJ$10","v":0},null,null,null,null,null,null,-4.5,null,"Dustin Johnson","Johnson, D",{"$f":"IF(VLOOKUP($AS32,Augusta!$B:$I,6,FALSE)=\"E\",0,VLOOKUP($AS32,Augusta!$B:$I,6,FALSE))","v":2},{"$f":"VLOOKUP($AS32,Augusta!$B:$I,7,FALSE)","v":"F"}]
[21,"Jay Stone",-6,null,null,null,null,null,null,null,null,null,null,null,null,null,null,{"$f":"R$11+R$10","v":2},null,null,{"$f":"U$11+U$10","v":2},null,null,null,null,null,{"$f":"AA$11+AA$10","v":-2},null,null,null,null,null,null,null,null,{"$f":"AJ$11+AJ$10","v":0},null,null,null,null,null,null,-4,null,"Zach Johnson","Johnson, Z",{"$f":"IF(VLOOKUP($AS33,Augusta!$B:$I,6,FALSE)=\"E\",0,VLOOKUP($AS33,Augusta!$B:$I,6,FALSE))","v":1},{"$f":"VLOOKUP($AS33,Augusta!$B:$I,7,FALSE)","v":"F"}]
[22,"Bill Nicholson",-4.5,null,null,null,null,null,null,null,null,null,null,null,null,null,null,null,null,null,2,null,{"$f":"W$11+W$10","v":3},null,{"$f":"Y$11+Y$10","v":1},null,null,null,null,null,null,null,null,null,null,null,{"$f":"AK$11+AK$10","v":0},null,{"$f":"AM$11+AM$10","v":-5},null,null,null,-3.5,null,"Anthony Kim","Kim",{"$f":"IF(VLOOKUP($AS34,Augusta!$B:$I,6,FALSE)=\"E\",0,VLOOKUP($AS34,Augusta!$B:$I,6,FALSE))","v":1},{"$f":"VLOOKUP($AS34,Augusta!$B:$I,7,FALSE)","v":"F"}]
[23,"Gene Brumbelow",-4.5,null,null,null,null,null,null,null,null,null,null,null,null,null,null,{"$f":"R$11+R$10","v":2},null,null,2,null,null,null,null,null,{"$f":"AA$11+AA$10","v":-2},null,null,null,null,null,null,null,null,{"$f":"AJ$11+AJ$10","v":0},null,null,null,null,null,null,-2.5,null,"Matt Kuchar","Kuchar",{"$f":"IF(VLOOKUP($AS35,Augusta!$B:$I,6,FALSE)=\"E\",0,VLOOKUP($AS35,Augusta!$B:$I,6,FALSE))","v":-4},{"$f":"VLOOKUP($AS35,Augusta!$B:$I,7,FALSE)","v":"F"}]
[24,"Greg Watkins",-3,null,null,null,{"$f":"G$11+G$10","v":2},null,null,null,null,null,null,null,null,null,null,null,{"$f":"S$11+S$10","v":-1},null,2,null,null,null,null,null,null,null,null,null,{"$f":"AE$11+AE$10","v":0},null,null,null,null,null,null,null,null,null,null,null,0,null,"Hunter Mahan","Mahan",{"$f":"IF(VLOOKUP($AS36,Augusta!$B:$I,6,FALSE)=\"E\",0,VLOOKUP($AS36,Augusta!$B:$I,6,FALSE))","v":3},{"$f":"VLOOKUP($AS36,Augusta!$B:$I,7,FALSE)","v":"F"}]
[25,"Tim Waikem",3,null,null,null,null,null,null,null,null,null,null,null,null,{"$f":"P$11+P$10","v":-2},null,null,null,null,2,null,null,null,null,null,{"$f":"AA$11+AA$10","v":-2},null,null,null,null,null,null,null,null,{"$f":"AJ$11+AJ$10","v":0},null,null,null,null,null,null,1,null,"Steve Marino","Marino",{"$f":"IF(VLOOKUP($AS37,Augusta!$B:$I,6,FALSE)=\"E\",0,VLOOKUP($AS37,Augusta!$B:$I,6,FALSE))","v":2},{"$f":"VLOOKUP($AS37,Augusta!$B:$I,7,FALSE)","v":"F"}]
[26,"Eric Lauritzen**",3,null,null,null,null,null,null,null,null,null,null,null,null,{"$f":"P$11+P$10","v":-2},null,{"$f":"R$11+R$10","v":2},null,null,2,null,null,null,null,null,{"$f":"AA$11+AA$10","v":-2},null,null,null,null,null,null,null,null,null,null,null,null,null,null,null,3,null,"Graeme McDowell","McDowell",{"$f":"IF(VLOOKUP($AS38,Augusta!$B:$I,6,FALSE)=\"E\",0,VLOOKUP($AS38,Augusta!$B:$I,6,FALSE))","v":2},{"$f":"VLOOKUP($AS38,Augusta!$B:$I,7,FALSE)","v":"F"}]
[27,"Matt Stone",6,null,null,null,null,null,null,null,null,null,null,null,null,{"$f":"P$11+P$10","v":-2},null,null,null,null,2,null,null,null,null,null,{"$f":"AA$11+AA$10","v":-2},null,null,null,null,null,null,null,null,{"$f":"AJ$11+AJ$10","v":0},null,null,null,null,null,null,4,null,"Rory McIlroy","McIlroy",{"$f":"IF(VLOOKUP($AS39,Augusta!$B:$I,6,FALSE)=\"E\",0,VLOOKUP($AS39,Augusta!$B:$I,6,FALSE))","v":-7},{"$f":"VLOOKUP($AS39,Augusta!$B:$I,7,FALSE)","v":"F"}]
[28,"Steve Robinson",-1.5,null,null,null,null,null,null,null,null,null,{"$f":"M$11+M$10","v":5},null,null,null,null,null,null,null,null,null,{"$f":"W$11+W$10","v":3},null,null,null,null,null,null,{"$f":"AD$11+AD$10","v":-1},null,null,null,null,{"$f":"AI$11+AI$10","v":3},null,null,null,null,null,null,null,8.5,null,"Phil Mickelson","Mickelson",{"$f":"IF(VLOOKUP($AS40,Augusta!$B:$I,6,FALSE)=\"E\",0,VLOOKUP($AS40,Augusta!$B:$I,6,FALSE))","v":-2},{"$f":"VLOOKUP($AS40,Augusta!$B:$I,7,FALSE)","v":"F"}]
[29,"Walter Smedley**",-1.5,null,null,{"$f":"F$11+F$10","v":2},null,null,null,null,null,null,{"$f":"M$11+M$10","v":5},null,null,null,{"$f":"Q$11+Q$10","v":6},{"$f":"R$11+R$10","v":2},null,null,null,null,null,null,null,null,null,null,null,null,null,null,null,null,null,null,null,null,null,null,null,null,13.5,null,"Ryan Moore","Moore",{"$f":"IF(VLOOKUP($AS41,Augusta!$B:$I,6,FALSE)=\"E\",0,VLOOKUP($AS41,Augusta!$B:$I,6,FALSE))","v":-2},{"$f":"VLOOKUP($AS41,Augusta!$B:$I,7,FALSE)","v":"F"}]
[30,"Danny Tinkler",4.5,null,null,null,null,null,null,null,null,null,null,null,null,{"$f":"P$11+P$10","v":-2},null,null,null,null,null,null,null,null,null,null,null,null,null,null,null,null,{"$f":"AG$11+AG$10","v":10},null,null,null,null,{"$f":"AL$11+AL$10","v":7},{"$f":"AM$11+AM$10","v":-5},null,null,null,14.5,null,"Geoff Ogilvy","Ogilvy",{"$f":"IF(VLOOKUP($AS42,Augusta!$B:$I,6,FALSE)=\"E\",0,VLOOKUP($AS42,Augusta!$B:$I,6,FALSE))","v":-3},{"$f":"VLOOKUP($AS42,Augusta!$B:$I,7,FALSE)","v":"F"}]
[31,"Jenny Murdock",-3,null,null,null,null,null,{"$f":"I$11+I$10","v":-4},null,null,null,null,null,null,{"$f":"P$11+P$10","v":-2},null,null,{"$f":"S$11+S$10","v":-1},null,null,null,null,{"$f":"X$11+X$10","v":-10},null,null,null,null,null,null,null,null,null,null,null,null,null,null,null,null,null,50,30,null,"Sean O'Hair","O'Hair",{"$f":"IF(VLOOKUP($AS43,Augusta!$B:$I,6,FALSE)=\"E\",0,VLOOKUP($AS43,Augusta!$B:$I,6,FALSE))","v":-2},{"$f":"VLOOKUP($AS43,Augusta!$B:$I,7,FALSE)","v":"F"}]
[32,"Brad Scarborough",-6,null,null,null,null,null,null,null,null,null,null,null,null,null,null,null,null,null,null,null,null,null,null,null,null,null,null,null,null,null,null,null,null,null,null,null,null,null,null,50,44,null,"Kenny Perry","Perry",{"$f":"IF(VLOOKUP($AS44,Augusta!$B:$I,6,FALSE)=\"E\",0,VLOOKUP($AS44,Augusta!$B:$I,6,FALSE))","v":{"$error":"#N/A"}},{"$f":"VLOOKUP($AS44,Augusta!$B:$I,7,FALSE)","v":{"$error":"#N/A"}}]
[33,"Windol Cook",-3,null,null,null,null,null,null,null,null,null,null,null,null,null,null,null,null,null,null,null,null,null,null,null,null,null,null,null,null,null,null,null,null,null,null,null,null,null,null,50,47,null,"Alvaro Quiros","Quiros",{"$f":"IF(VLOOKUP($AS45,Augusta!$B:$I,6,FALSE)=\"E\",0,VLOOKUP($AS45,Augusta!$B:$I,6,FALSE))","v":-7},{"$f":"VLOOKUP($AS45,Augusta!$B:$I,7,FALSE)","v":"F"}]
[null,null,null,null,null,null,null,null,null,null,null,null,null,null,null,null,null,null,null,null,null,null,null,null,null,null,null,null,null,null,null,null,null,null,null,null,null,null,null,null,null,null,null,null,"Rory Sabbatini","Sabbatini",{"$f":"IF(VLOOKUP($AS46,Augusta!$B:$I,6,FALSE)=\"E\",0,VLOOKUP($AS46,Augusta!$B:$I,6,FALSE))","v":2},{"$f":"VLOOKUP($AS46,Augusta!$B:$I,7,FALSE)","v":"F"}]
["Format:",null,"Shizzle",null,null,null,null,null,null,null,null,null,null,null,null,null,null,null,null,null,null,null,null,null,null,null,null,null,null,null,null,null,null,null,null,null,null,null,null,null,null,null,null,null,"Charl Schwartzel","Schwartzel",{"$f":"IF(VLOOKUP($AS47,Augusta!$B:$I,6,FALSE)=\"E\",0,VLOOKUP($AS47,Augusta!$B:$I,6,FALSE))","v":-3},{"$f":"VLOOKUP($AS47,Augusta!$B:$I,7,FALSE)","v":"F"}]
["Venue:",null,"Pine Forest (Gold to White)",null,null,null,null,null,null,null,null,null,null,null,null,null,null,null,null,null,null,null,null,null,null,null,null,null,null,null,null,null,null,null,null,null,null,null,null,null,null,null,null,null,"Adam Scott","Scott",{"$f":"IF(VLOOKUP($AS48,Augusta!$B:$I,6,FALSE)=\"E\",0,VLOOKUP($AS48,Augusta!$B:$I,6,FALSE))","v":0},{"$f":"VLOOKUP($AS48,Augusta!$B:$I,7,FALSE)","v":"F"}]
["MFC Champion:",null,"P. Michael Gandolfo III",null,null,null,null,null,null,null,null,null,null,null,null,null,null,null,null,null,null,null,null,null,null,null,null,null,null,null,null,null,null,null,null,null,null,null,null,null,null,null,null,null,"Vijay Singh","Singh",{"$f":"IF(VLOOKUP($AS49,Augusta!$B:$I,6,FALSE)=\"E\",0,VLOOKUP($AS49,Augusta!$B:$I,6,FALSE))","v":4},{"$f":"VLOOKUP($AS49,Augusta!$B:$I,7,FALSE)","v":"F"}]
["Masters Winners:",null,"\"Team Asia\" : Anthony Kim, KJ Choi, Y.E. Yang, Tiger Woods",null,null,null,null,null,null,null,null,null,null,null,null,null,null,null,null,null,null,null,null,null,null,null,null,null,null,null,null,null,null,null,null,null,null,null,null,null,null,null,null,null,"Steve Stricker","Stricker",{"$f":"IF(VLOOKUP($AS50,Augusta!$B:$I,6,FALSE)=\"E\",0,VLOOKUP($AS50,Augusta!$B:$I,6,FALSE))","v":0},{"$f":"VLOOKUP($AS50,Augusta!$B:$I,7,FALSE)","v":"F"}]
[null,null,null,null,null,null,null,null,null,null,null,null,null,null,null,null,null,null,null,null,null,null,null,null,null,null,null,null,null,null,null,null,null,null,null,null,null,null,null,null,null,null,null,null,"Camilo Villegas","Villegas",{"$f":"IF(VLOOKUP($AS51,Augusta!$B:$I,6,FALSE)=\"E\",0,VLOOKUP($AS51,Augusta!$B:$I,6,FALSE))","v":-2},{"$f":"VLOOKUP($AS51,Augusta!$B:$I,7,FALSE)","v":"F"}]
[null,null,null,null,null,null,null,null,null,null,null,null,null,null,null,null,null,null,null,null,null,null,null,null,null,null,null,null,null,null,null,null,null,null,null,null,null,null,null,null,null,null,null,null,"Nick Watney","Watney",{"$f":"IF(VLOOKUP($AS52,Augusta!$B:$I,6,FALSE)=\"E\",0,VLOOKUP($AS52,Augusta!$B:$I,6,FALSE))","v":0},{"$f":"VLOOKUP($AS52,Augusta!$B:$I,7,FALSE)","v":"F"}]
[null,null,null,null,null,null,null,null,null,null,null,null,null,null,null,null,null,null,null,null,null,null,null,null,null,null,null,null,null,null,null,null,null,null,null,null,null,null,null,null,null,null,null,null,"Mike Weir","Weir",{"$f":"IF(VLOOKUP($AS53,Augusta!$B:$I,6,FALSE)=\"E\",0,VLOOKUP($AS53,Augusta!$B:$I,6,FALSE))","v":4},{"$f":"VLOOKUP($AS53,Augusta!$B:$I,7,FALSE)","v":"F"}]
[null,null,null,null,null,null,null,null,null,null,null,null,null,null,null,null,null,null,null,null,null,null,null,null,null,null,null,null,null,null,null,null,null,null,null,null,null,null,null,null,null,null,null,null,"Lee Westwood","Westwood",{"$f":"IF(VLOOKUP($AS54,Augusta!$B:$I,6,FALSE)=\"E\",0,VLOOKUP($AS54,Augusta!$B:$I,6,FALSE))","v":0},{"$f":"VLOOKUP($AS54,Augusta!$B:$I,7,FALSE)","v":"F"}]
[null,null,null,null,null,null,null,null,null,null,null,null,null,null,null,null,null,null,null,null,null,null,null,null,null,null,null,null,null,null,null,null,null,null,null,null,null,null,null,null,null,null,null,null,"Tiger Woods","Woods",{"$f":"IF(VLOOKUP($AS55,Augusta!$B:$I,6,FALSE)=\"E\",0,VLOOKUP($AS55,Augusta!$B:$I,6,FALSE))","v":-1},{"$f":"VLOOKUP($AS55,Augusta!$B:$I,7,FALSE)","v":"F"}]
[null,null,null,null,null,null,null,null,null,null,null,null,null,null,null,null,null,null,null,null,null,null,null,null,null,null,null,null,null,null,null,null,null,null,null,null,null,null,null,null,null,null,null,null,"Stewart Cink","Cink",{"$f":"IF(VLOOKUP($AS56,Augusta!$B:$I,6,FALSE)=\"E\",0,VLOOKUP($AS56,Augusta!$B:$I,6,FALSE))","v":-1},{"$f":"VLOOKUP($AS56,Augusta!$B:$I,7,FALSE)","v":"F"}]
[null,null,null,null,null,null,null,null,null,null,null,null,null,null,null,null,null,null,null,null,null,null,null,null,null,null,null,null,null,null,null,null,null,null,null,null,null,null,null,null,null,null,null,null,"Tim Clark","Clark",{"$f":"IF(VLOOKUP($AS57,Augusta!$B:$I,6,FALSE)=\"E\",0,VLOOKUP($AS57,Augusta!$B:$I,6,FALSE))","v":1},{"$f":"VLOOKUP($AS57,Augusta!$B:$I,7,FALSE)","v":"F"}]
[null,null,null,null,null,null,null,null,null,null,null,null,null,null,null,null,null,null,null,null,null,null,null,null,null,null,null,null,null,null,null,null,null,null,null,null,null,null,null,null,null,null,null,null,"Rickie Fowler","Fowler",{"$f":"IF(VLOOKUP($AS58,Augusta!$B:$I,6,FALSE)=\"E\",0,VLOOKUP($AS58,Augusta!$B:$I,6,FALSE))","v":-2},{"$f":"VLOOKUP($AS58,Augusta!$B:$I,7,FALSE)","v":"F"}]
[null,null,null,null,null,null,null,null,null,null,null,null,null,null,null,null,null,null,null,null,null,null,null,null,null,null,null,null,null,null,null,null,null,null,null,null,null,null,null,null,null,null,null,null,"Padraig Harrington","Harrington",{"$f":"IF(VLOOKUP($AS59,Augusta!$B:$I,6,FALSE)=\"E\",0,VLOOKUP($AS59,Augusta!$B:$I,6,FALSE))","v":5},{"$f":"VLOOKUP($AS59,Augusta!$B:$I,7,FALSE)","v":"F"}]
[null,null,null,null,null,null,null,null,null,null,null,null,null,null,null,null,null,null,null,null,null,null,null,null,null,null,null,null,null,null,null,null,null,null,null,null,null,null,null,null,null,null,null,null,"Trevor Immelman","Immelman",{"$f":"IF(VLOOKUP($AS60,Augusta!$B:$I,6,FALSE)=\"E\",0,VLOOKUP($AS60,Augusta!$B:$I,6,FALSE))","v":-3},{"$f":"VLOOKUP($AS60,Augusta!$B:$I,7,FALSE)","v":"F"}]
[null,null,null,null,null,null,null,null,null,null,null,null,null,null,null,null,null,null,null,null,null,null,null,null,null,null,null,null,null,null,null,null,null,null,null,null,null,null,null,null,null,null,null,null,"Ryo Ishikawa","Ishikawa",{"$f":"IF(VLOOKUP($AS61,Augusta!$B:$I,6,FALSE)=\"E\",0,VLOOKUP($AS61,Augusta!$B:$I,6,FALSE))","v":-1},{"$f":"VLOOKUP($AS61,Augusta!$B:$I,7,FALSE)","v":"F"}]
[null,null,null,null,null,null,null,null,null,null,null,null,null,null,null,null,null,null,null,null,null,null,null,null,null,null,null,null,null,null,null,null,null,null,null,null,null,null,null,null,null,null,null,null,"Martin Kaymer","Kaymer",{"$f":"IF(VLOOKUP($AS62,Augusta!$B:$I,6,FALSE)=\"E\",0,VLOOKUP($AS62,Augusta!$B:$I,6,FALSE))","v":6},{"$f":"VLOOKUP($AS62,Augusta!$B:$I,7,FALSE)","v":"F"}]
[null,null,null,null,null,null,null,null,null,null,null,null,null,null,null,null,null,null,null,null,null,null,null,null,null,null,null,null,null,null,null,null,null,null,null,null,null,null,null,null,null,null,null,null,"Martin Laird","Laird",{"$f":"IF(VLOOKUP($AS63,Augusta!$B:$I,6,FALSE)=\"E\",0,VLOOKUP($AS63,Augusta!$B:$I,6,FALSE))","v":2},{"$f":"VLOOKUP($AS63,Augusta!$B:$I,7,FALSE)","v":"F"}]
[null,null,null,null,null,null,null,null,null,null,null,null,null,null,null,null,null,null,null,null,null,null,null,null,null,null,null,null,null,null,null,null,null,null,null,null,null,null,null,null,null,null,null,null,"Francesco Molinari","Molinari F",{"$f":"IF(VLOOKUP($AS64,Augusta!$B:$I,6,FALSE)=\"E\",0,VLOOKUP($AS64,Augusta!$B:$I,6,FALSE))","v":3},{"$f":"VLOOKUP($AS64,Augusta!$B:$I,7,FALSE)","v":"F"}]
[null,null,null,null,null,null,null,null,null,null,null,null,null,null,null,null,null,null,null,null,null,null,null,null,null,null,null,null,null,null,null,null,null,null,null,null,null,null,null,null,null,null,null,null,"Jeff Overton","Overton",{"$f":"IF(VLOOKUP($AS65,Augusta!$B:$I,6,FALSE)=\"E\",0,VLOOKUP($AS65,Augusta!$B:$I,6,FALSE))","v":1},{"$f":"VLOOKUP($AS65,Augusta!$B:$I,7,FALSE)","v":"F"}]
[null,null,null,null,null,null,null,null,null,null,null,null,null,null,null,null,null,null,null,null,null,null,null,null,null,null,null,null,null,null,null,null,null,null,null,null,null,null,null,null,null,null,null,null,"Ian Poulter","Poulter",{"$f":"IF(VLOOKUP($AS66,Augusta!$B:$I,6,FALSE)=\"E\",0,VLOOKUP($AS66,Augusta!$B:$I,6,FALSE))","v":2},{"$f":"VLOOKUP($AS66,Augusta!$B:$I,7,FALSE)","v":"F"}]
[null,null,null,null,null,null,null,null,null,null,null,null,null,null,null,null,null,null,null,null,null,null,null,null,null,null,null,null,null,null,null,null,null,null,null,null,null,null,null,null,null,null,null,null,"Justin Rose","Rose",{"$f":"IF(VLOOKUP($AS67,Augusta!$B:$I,6,FALSE)=\"E\",0,VLOOKUP($AS67,Augusta!$B:$I,6,FALSE))","v":1},{"$f":"VLOOKUP($AS67,Augusta!$B:$I,7,FALSE)","v":"F"}]
[null,null,null,null,null,null,null,null,null,null,null,null,null,null,null,null,null,null,null,null,null,null,null,null,null,null,null,null,null,null,null,null,null,null,null,null,null,null,null,null,null,null,null,null,"David Toms","Toms",{"$f":"IF(VLOOKUP($AS68,Augusta!$B:$I,6,FALSE)=\"E\",0,VLOOKUP($AS68,Augusta!$B:$I,6,FALSE))","v":0},{"$f":"VLOOKUP($AS68,Augusta!$B:$I,7,FALSE)","v":"F"}]
[null,null,null,null,null,null,null,null,null,null,null,null,null,null,null,null,null,null,null,null,null,null,null,null,null,null,null,null,null,null,null,null,null,null,null,null,null,null,null,null,null,null,null,null,"Bubba Watson","Watson B",{"$f":"IF(VLOOKUP($AS69,Augusta!$B:$I,6,FALSE)=\"E\",0,VLOOKUP($AS69,Augusta!$B:$I,6,FALSE))","v":1},{"$f":"VLOOKUP($AS69,Augusta!$B:$I,7,FALSE)","v":"F"}]
[null,null,null,null,null,null,null,null,null,null,null,null,null,null,null,null,null,null,null,null,null,null,null,null,null,null,null,null,null,null,null,null,null,null,null,null,null,null,null,null,null,null,null,null,"Tom Watson","Watson T",{"$f":"IF(VLOOKUP($AS70,Augusta!$B:$I,6,FALSE)=\"E\",0,VLOOKUP($AS70,Augusta!$B:$I,6,FALSE))","v":7},{"$f":"VLOOKUP($AS70,Augusta!$B:$I,7,FALSE)","v":"F"}]
[null,null,null,null,null,null,null,null,null,null,null,null,null,null,null,null,null,null,null,null,null,null,null,null,null,null,null,null,null,null,null,null,null,null,null,null,null,null,null,null,null,null,null,null,"Gary Woodland","Woodland",{"$f":"IF(VLOOKUP($AS71,Augusta!$B:$I,6,FALSE)=\"E\",0,VLOOKUP($AS71,Augusta!$B:$I,6,FALSE))","v":-3},{"$f":"VLOOKUP($AS71,Augusta!$B:$I,7,FALSE)","v":"F"}]
[null,null,null,null,null,null,null,null,null,null,null,null,null,null,null,null,null,null,null,null,null,null,null,null,null,null,null,null,null,null,null,null,null,null,null,null,null,null,null,null,null,null,null,null,"Y.E. Yang","Yang",{"$f":"IF(VLOOKUP($AS72,Augusta!$B:$I,6,FALSE)=\"E\",0,VLOOKUP($AS72,Augusta!$B:$I,6,FALSE))","v":-5},{"$f":"VLOOKUP($AS72,Augusta!$B:$I,7,FALSE)","v":"F"}]

{"sheet":"2010","index":1,"n_rows":55,"n_cols":51,"rows_kept":55,"cut":false,"hidden":false,"merged":[[0,0,5,0],[0,1,5,39],[6,2,8,2],[6,3,8,3],[6,4,8,4],[6,13,8,13],[6,18,8,18],[6,31,8,31],[6,9,8,9],[6,17,8,17],[6,27,8,27],[6,25,8,25],[6,5,8,5],[6,36,8,36],[6,21,8,21],[6,14,8,14],[6,33,8,33],[6,11,8,11],[6,8,8,8],[6,12,8,12],[6,40,11,40],[6,30,8,30],[6,15,8,15],[6,34,8,34],[6,1,8,1],[52,1,52,40],[48,0,48,40],[49,1,49,40],[50,1,50,40],[51,1,51,40],[6,39,8,39],[6,37,8,37],[6,26,8,26],[6,19,8,19],[6,38,8,38],[6,23,8,23],[6,35,8,35],[6,28,8,28],[6,32,8,32],[6,29,8,29],[6,10,8,10],[6,7,8,7],[6,24,8,24],[6,20,8,20],[8,0,11,0],[6,22,8,22],[6,16,8,16],[6,6,8,6]]}
[null,"Masters Friday 2010"]
[]
[]
[]
[]
[]
[null,"Pine Forest Score","ALLENBY","CABRERA","CAMpBELL","CASEY","CHOI","COUPLES","CURTIS","DONALD","DUVAL","ELS","FISHER","FURYK","GARCIA","GOOSEN","JHNSON D","JHNSON Z","KIM","KUCHAR","MAHAN","MARINO","MCDOWELL","MCILROY","MIKELSON","MOORE","OGILVY","O'HAIR","PERRY","QUIROS","SABITINI","SCHWTZEL","SCOTT","SINGH","STRICKER","VILLEGAS","WATNEY","WEIR","WESTWOOD","WOODS","Combined MFC & PGA Totals"]
[]
["MFC Golfer"]
[null,"Thursday",0,1,7,3,-5,-6,1,2,4,-1,5,8,2,2,-1,-2,-4,-2,-1,-1,3,2,-5,0,2,0,0,3,3,-3,-3,4,1,2,-4,-1,-5,-4]
[null,"Friday",3,2,-4,6,-1,3,3,3,3,1,4,4,-2,-1,0,2,-2,1,-1,1,2,5,-1,1,0,-1,-1,3,6,4,3,6,1,0,4,0,-3,-2]
[null,"Thru","F","F","F","F","F","F","F","F","F","F","F","F","F","F","F","F","F","F","F","F","F","F","F","F","F","F","F","F","F","F","F","F","F","F","F","F","F","F"]
["Ronny Byrd",-22.5,null,null,null,null,null,null,null,null,null,null,null,null,null,null,null,null,{"$f":"S$11+S$10","v":-6},null,{"$f":"U$11+U$10","v":-2},null,null,null,{"$f":"Y$11+Y$10","v":-6},null,null,null,null,null,null,{"$f":"AF$11+AF$10","v":1},null,null,null,null,null,null,null,null,{"$f":"SUM(B13:AN13)","v":-35.5}]
["Steve Robinson",-21,null,null,null,null,{"$f":"G$11+G$10","v":-6},null,null,null,null,{"$f":"L$11+L$10","v":0},null,null,null,null,null,null,{"$f":"S$11+S$10","v":-6},null,null,null,null,null,null,null,null,null,null,null,null,null,null,null,null,{"$f":"AJ$11+AJ$10","v":2},null,null,null,null,-31]
["Tim Waikem",-16.5,null,null,null,null,null,null,null,null,null,null,null,null,null,null,null,null,{"$f":"S$11+S$10","v":-6},null,null,null,null,null,null,null,null,null,null,null,null,{"$f":"AF$11+AF$10","v":1},null,null,null,{"$f":"AJ$11+AJ$10","v":2},null,null,null,{"$f":"AN$11+AN$10","v":-6},-25.5]
["Davis Scarborough",-21,null,null,null,null,null,null,null,null,null,null,null,null,null,{"$f":"P$11+P$10","v":1},null,null,null,null,null,null,null,null,{"$f":"Y$11+Y$10","v":-6},null,{"$f":"AA$11+AA$10","v":2},{"$f":"AB$11+AB$10","v":-1},null,null,null,null,null,null,null,null,null,null,null,null,-25]
["Eric Lauritzen**",-12,null,null,null,null,null,null,null,null,null,null,null,null,null,null,{"$f":"Q$11+Q$10","v":-1},null,{"$f":"S$11+S$10","v":-6},null,null,null,null,null,null,null,{"$f":"AA$11+AA$10","v":2},null,null,null,null,null,null,null,null,null,null,null,{"$f":"AM$11+AM$10","v":-8},null,-25]
["Matt Stone",-12,null,null,null,null,null,null,null,null,null,null,null,null,null,{"$f":"P$11+P$10","v":1},null,null,{"$f":"S$11+S$10","v":-6},null,null,null,null,null,null,null,null,null,null,null,null,{"$f":"AF$11+AF$10","v":1},null,null,null,null,null,null,{"$f":"AM$11+AM$10","v":-8},null,-24,null,null,"Robert Allenby",null,{"$f":"VLOOKUP($AR18,#REF!,7,FALSE)","v":{"$error":"#REF!"}},"Allenby"]
["Tom Pope",-19.5,null,{"$f":"D$11+D$10","v":3},null,null,null,null,null,null,null,{"$f":"L$11+L$10","v":0},null,null,null,null,null,null,{"$f":"S$11+S$10","v":-6},null,null,null,null,null,null,null,null,null,{"$f":"AC$11+AC$10","v":-1},null,null,null,null,null,null,null,null,null,null,null,-23.5,null,null,"Angel Cabrera",{"$f":"IF(VLOOKUP($AR19,#REF!,6,FALSE)=\"E\",0,VLOOKUP($AR19,#REF!,6,FALSE))","v":{"$error":"#REF!"}},{"$f":"VLOOKUP($AR19,#REF!,7,FALSE)","v":{"$error":"#REF!"}},"Cabrera",null,null,null,{"$f":"AS19","v":{"$error":"#REF!"}}]
["Nicole Cooper",-10.5,null,null,null,null,null,null,null,null,null,null,null,null,null,{"$f":"P$11+P$10","v":1},null,null,{"$f":"S$11+S$10","v":-6},null,null,null,null,null,null,null,null,null,null,null,null,null,{"$f":"AG$11+AG$10","v":0},null,null,null,null,null,{"$f":"AM$11+AM$10","v":-8},null,-23.5,null,null,"Chad Campbell",{"$f":"IF(VLOOKUP($AR20,#REF!,6,FALSE)=\"E\",0,VLOOKUP($AR20,#REF!,6,FALSE))","v":{"$error":"#REF!"}},{"$f":"VLOOKUP($AR20,#REF!,7,FALSE)","v":{"$error":"#REF!"}},"Campbell",null,null,null,{"$error":"#REF!"}]
["Ric Booth ",-16.5,null,null,null,null,{"$f":"G$11+G$10","v":-6},null,null,null,null,null,null,null,{"$f":"O$11","v":-2},null,null,{"$f":"R$11+R$10","v":0},null,null,null,null,null,null,null,null,null,null,null,null,null,null,null,null,{"$f":"AI$11+AI$10","v":2},null,null,null,null,null,-22.5,null,null,"Paul Casey",{"$f":"IF(VLOOKUP($AR21,#REF!,6,FALSE)=\"E\",0,VLOOKUP($AR21,#REF!,6,FALSE))","v":{"$error":"#REF!"}},{"$f":"VLOOKUP($AR21,#REF!,7,FALSE)","v":{"$error":"#REF!"}},"Casey",null,null,null,{"$error":"#REF!"}]
["Mike Walter",-9,null,null,null,null,null,null,null,null,null,null,null,null,null,null,null,{"$f":"R$11+R$10","v":0},null,{"$f":"T$11+T$10","v":-1},null,null,null,null,null,null,null,null,null,null,null,null,null,null,null,null,null,{"$f":"AL$11+AL$10","v":-1},{"$f":"AM$11+AM$10","v":-8},null,-19,null,null,"K.J. Choi",{"$f":"IF(VLOOKUP($AR22,#REF!,6,FALSE)=\"E\",0,VLOOKUP($AR22,#REF!,6,FALSE))","v":{"$error":"#REF!"}},{"$f":"VLOOKUP($AR22,#REF!,7,FALSE)","v":{"$error":"#REF!"}},"Choi",null,null,null,{"$error":"#REF!"}]
["Don Ashley",-6,null,null,null,null,null,null,null,null,null,null,null,null,null,{"$f":"P$11+P$10","v":1},null,null,{"$f":"S$11+S$10","v":-6},null,null,null,null,null,{"$f":"Y$11+Y$10","v":-6},null,null,{"$f":"AB$11+AB$10","v":-1},null,null,null,null,null,null,null,null,null,null,null,null,-18,null,null,"Fred Couples",{"$f":"IF(VLOOKUP($AR23,#REF!,6,FALSE)=\"E\",0,VLOOKUP($AR23,#REF!,6,FALSE))","v":{"$error":"#REF!"}},{"$f":"VLOOKUP($AR23,#REF!,7,FALSE)","v":{"$error":"#REF!"}},"Couples",null,null,null,{"$error":"#REF!"}]
["Mike Gandolfo**",-19.5,null,null,null,null,null,null,null,null,{"$f":"K$11+K$10","v":7},null,null,null,null,null,null,null,null,null,null,null,null,null,null,null,{"$f":"AA$11+AA$10","v":2},null,{"$f":"AC$11+AC$10","v":-1},null,null,null,null,null,null,null,null,null,null,{"$f":"AN$11+AN$10","v":-6},-17.5,null,null,"Ben Curtis",{"$f":"IF(VLOOKUP($AR24,#REF!,6,FALSE)=\"E\",0,VLOOKUP($AR24,#REF!,6,FALSE))","v":{"$error":"#REF!"}},{"$f":"VLOOKUP($AR24,#REF!,7,FALSE)","v":{"$error":"#REF!"}},"Curtis",null,null,null,{"$error":"#REF!"}]
["Frank McGill**",-7.5,null,null,null,null,{"$f":"G$11+G$10","v":-6},null,null,null,null,{"$f":"L$11+L$10","v":0},null,null,null,null,null,null,{"$f":"S$11+S$10","v":-6},null,null,null,null,null,null,null,null,null,null,null,null,null,null,null,null,{"$f":"AJ$11+AJ$10","v":2},null,null,null,null,-17.5,null,null,"Luke Donald",{"$f":"IF(VLOOKUP($AR25,#REF!,6,FALSE)=\"E\",0,VLOOKUP($AR25,#REF!,6,FALSE))","v":{"$error":"#REF!"}},{"$f":"VLOOKUP($AR25,#REF!,7,FALSE)","v":{"$error":"#REF!"}},"Donald",null,null,null,{"$error":"#REF!"}]
["John Phillips",3,null,null,null,null,{"$f":"G$11+G$10","v":-6},null,null,null,null,null,null,null,null,null,null,null,{"$f":"S$11+S$10","v":-6},{"$f":"T$11+T$10","v":-1},null,null,null,null,null,null,null,null,null,null,null,null,null,null,null,null,null,null,null,{"$f":"AN$11+AN$10","v":-6},-16,null,null,"David Duval",{"$f":"IF(VLOOKUP($AR26,#REF!,6,FALSE)=\"E\",0,VLOOKUP($AR26,#REF!,6,FALSE))","v":{"$error":"#REF!"}},{"$f":"VLOOKUP($AR26,#REF!,7,FALSE)","v":{"$error":"#REF!"}},"Duval",null,null,null,{"$error":"#REF!"}]
["Charlie Wharton",-16.5,null,null,null,null,null,null,null,{"$f":"J$11+J$10","v":5},null,null,null,null,null,null,null,null,null,null,null,null,null,null,null,null,{"$f":"AA$11+AA$10","v":2},null,null,null,null,{"$f":"AF$11+AF$10","v":1},null,null,null,null,null,null,null,{"$f":"AN$11+AN$10","v":-6},-14.5,null,null,"Ernie Els",{"$f":"IF(VLOOKUP($AR27,#REF!,6,FALSE)=\"E\",0,VLOOKUP($AR27,#REF!,6,FALSE))","v":{"$error":"#REF!"}},{"$f":"VLOOKUP($AR27,#REF!,7,FALSE)","v":{"$error":"#REF!"}},"Els",null,null,null,{"$error":"#REF!"}]
["Heidi Walter",-18,null,null,null,null,null,null,null,null,null,null,null,null,null,{"$f":"P$11+P$10","v":1},null,null,null,null,null,null,null,null,{"$f":"Y$11+Y$10","v":-6},null,null,null,null,null,null,null,null,{"$f":"AH$11+AH$10","v":10},null,null,null,{"$f":"AL$11+AL$10","v":-1},null,null,-14,null,null,"Ross Fisher",{"$f":"IF(VLOOKUP($AR28,#REF!,6,FALSE)=\"E\",0,VLOOKUP($AR28,#REF!,6,FALSE))","v":{"$error":"#REF!"}},{"$f":"VLOOKUP($AR28,#REF!,7,FALSE)","v":{"$error":"#REF!"}},"Fisher",null,null,null,{"$error":"#REF!"}]
["Gene Brumbelow",-7.5,null,null,null,null,null,null,null,null,null,null,null,null,null,{"$f":"P$11+P$10","v":1},null,null,{"$f":"S$11+S$10","v":-6},{"$f":"T$11+T$10","v":-1},null,null,null,null,null,null,null,null,null,null,null,null,null,null,{"$f":"AI$11+AI$10","v":2},null,null,null,null,null,-11.5,null,null,"Jim Furyk",{"$f":"IF(VLOOKUP($AR29,#REF!,6,FALSE)=\"E\",0,VLOOKUP($AR29,#REF!,6,FALSE))","v":{"$error":"#REF!"}},{"$f":"VLOOKUP($AR29,#REF!,7,FALSE)","v":{"$error":"#REF!"}},"Furyk",null,null,null,{"$error":"#REF!"}]
["Tim Colson",-16.5,null,null,null,null,null,null,null,null,null,{"$f":"L$11+L$10","v":0},null,null,null,{"$f":"P$11+P$10","v":1},null,null,null,null,null,null,{"$f":"W$11+W$10","v":5},null,null,null,null,null,null,null,null,null,{"$f":"AG$11+AG$10","v":0},null,null,null,null,null,null,null,-10.5,null,null,"Sergio Garcia",{"$f":"IF(VLOOKUP($AR30,#REF!,6,FALSE)=\"E\",0,VLOOKUP($AR30,#REF!,6,FALSE))","v":{"$error":"#REF!"}},{"$f":"VLOOKUP($AR30,#REF!,7,FALSE)","v":{"$error":"#REF!"}},"Garcia",null,null,null,{"$error":"#REF!"}]
["Mark Ingebrigtson",-7.5,null,null,{"$f":"E$11+E$10","v":3},null,{"$f":"G$11+G$10","v":-6},null,null,null,null,{"$f":"L$11+L$10","v":0},null,null,null,null,null,null,null,null,null,null,null,null,null,null,null,null,null,null,null,{"$f":"AF$11+AF$10","v":1},null,null,null,null,null,null,null,null,-9.5,null,null,"Retief Goosen",{"$f":"IF(VLOOKUP($AR31,#REF!,6,FALSE)=\"E\",0,VLOOKUP($AR31,#REF!,6,FALSE))","v":{"$error":"#REF!"}},{"$f":"VLOOKUP($AR31,#REF!,7,FALSE)","v":{"$error":"#REF!"}},"Goosen",null,null,null,{"$error":"#REF!"}]
["Don Vrba Jr.",-9,null,null,null,null,null,{"$f":"H$11+H$10","v":-3},{"$f":"I$11+I$10","v":4},null,null,null,null,null,null,null,null,null,null,null,null,null,null,{"$f":"X$11+X$10","v":7},null,null,null,null,null,null,null,null,null,null,null,null,null,null,{"$f":"AM$11+AM$10","v":-8},null,-9,null,null,"Dustin Johnson",{"$f":"IF(VLOOKUP($AR32,#REF!,6,FALSE)=\"E\",0,VLOOKUP($AR32,#REF!,6,FALSE))","v":{"$error":"#REF!"}},{"$f":"VLOOKUP($AR32,#REF!,7,FALSE)","v":{"$error":"#REF!"}},"Johnson, D",null,null,null,{"$error":"#REF!"}]
["Kim Phillips",-15,{"$f":"C$10+C$11","v":3},null,null,{"$f":"F$11+F$10","v":9},null,null,null,null,null,null,null,null,null,null,null,null,{"$f":"S$11+S$10","v":-6},null,null,null,null,null,null,null,null,null,null,null,null,null,null,null,null,{"$f":"AJ$11+AJ$10","v":2},null,null,null,null,-7,null,null,"Zach Johnson",{"$f":"IF(VLOOKUP($AR33,#REF!,6,FALSE)=\"E\",0,VLOOKUP($AR33,#REF!,6,FALSE))","v":{"$error":"#REF!"}},{"$f":"VLOOKUP($AR33,#REF!,7,FALSE)","v":{"$error":"#REF!"}},"Johnson, Z",null,null,null,{"$error":"#REF!"}]
["Matt Blackmon",-7.5,null,null,null,null,null,null,null,null,null,{"$f":"L$11+L$10","v":0},null,null,null,{"$f":"P$11+P$10","v":1},null,null,null,{"$f":"T$11+T$10","v":-1},null,null,null,null,null,null,null,null,null,null,null,null,null,null,null,{"$f":"AJ$11+AJ$10","v":2},null,null,null,null,-5.5,null,null,"Anthony Kim",{"$f":"IF(VLOOKUP($AR34,#REF!,6,FALSE)=\"E\",0,VLOOKUP($AR34,#REF!,6,FALSE))","v":{"$error":"#REF!"}},{"$f":"VLOOKUP($AR34,#REF!,7,FALSE)","v":{"$error":"#REF!"}},"Kim",null,null,null,{"$error":"#REF!"}]
["Shawn Wharton",-15,null,null,null,null,null,null,null,null,null,null,null,{"$f":"N$11+N$10","v":12},null,{"$f":"P$11+P$10","v":1},null,null,null,null,{"$f":"U$11+U$10","v":-2},null,null,null,null,null,null,{"$f":"AB$11+AB$10","v":-1},null,null,null,null,null,null,null,null,null,null,null,null,-5,null,null,"Matt Kuchar",{"$f":"IF(VLOOKUP($AR35,#REF!,6,FALSE)=\"E\",0,VLOOKUP($AR35,#REF!,6,FALSE))","v":{"$error":"#REF!"}},{"$f":"VLOOKUP($AR35,#REF!,7,FALSE)","v":{"$error":"#REF!"}},"Kuchar",null,null,null,{"$error":"#REF!"}]
["Mark McNulty",-9,null,null,null,null,{"$f":"G$11+G$10","v":-6},{"$f":"H$11+H$10","v":-3},null,null,null,null,null,{"$f":"N$11+N$10","v":12},null,{"$f":"P$11+P$10","v":1},null,null,null,null,null,null,null,null,null,null,null,null,null,null,null,null,null,null,null,null,null,null,null,null,-5,null,null,"Hunter Mahan",{"$f":"IF(VLOOKUP($AR36,#REF!,6,FALSE)=\"E\",0,VLOOKUP($AR36,#REF!,6,FALSE))","v":{"$error":"#REF!"}},{"$f":"VLOOKUP($AR36,#REF!,7,FALSE)","v":{"$error":"#REF!"}},"Mahan",null,null,null,{"$error":"#REF!"}]
["Don Vrba Sr.",-9,null,null,null,null,null,null,null,null,null,{"$f":"L$11+L$10","v":0},null,null,null,{"$f":"P$11+P$10","v":1},null,null,null,null,null,null,null,null,null,null,null,null,null,null,null,{"$f":"AF$11+AF$10","v":1},null,null,null,{"$f":"AJ$11+AJ$10","v":2},null,null,null,null,-5,null,null,"Steve Marino",{"$f":"IF(VLOOKUP($AR37,#REF!,6,FALSE)=\"E\",0,VLOOKUP($AR37,#REF!,6,FALSE))","v":{"$error":"#REF!"}},{"$f":"VLOOKUP($AR37,#REF!,7,FALSE)","v":{"$error":"#REF!"}},"Marino",null,null,null,{"$error":"#REF!"}]
["Peter Vescovo",-3,null,null,null,null,null,null,null,null,null,{"$f":"L$11+L$10","v":0},null,null,null,null,{"$f":"Q$11+Q$10","v":-1},null,null,null,null,null,null,null,null,null,null,{"$f":"AB$11+AB$10","v":-1},null,null,null,null,null,null,null,null,{"$f":"AK$11+AK$10","v":0},null,null,null,-5,null,null,"Graeme McDowell",{"$f":"IF(VLOOKUP($AR38,#REF!,6,FALSE)=\"E\",0,VLOOKUP($AR38,#REF!,6,FALSE))","v":{"$error":"#REF!"}},{"$f":"VLOOKUP($AR38,#REF!,7,FALSE)","v":{"$error":"#REF!"}},"McDowell",null,null,null,{"$error":"#REF!"}]
["Ken Nibling",-15,null,{"$f":"D$11+D$10","v":3},null,null,null,null,null,null,{"$f":"K$11+K$10","v":7},null,null,null,null,null,null,null,null,null,null,null,null,{"$f":"X$11+X$10","v":7},{"$f":"Y$11+Y$10","v":-6},null,null,null,null,null,null,null,null,null,null,null,null,null,null,null,-4,null,null,"Rory McIlroy",{"$f":"IF(VLOOKUP($AR39,#REF!,6,FALSE)=\"E\",0,VLOOKUP($AR39,#REF!,6,FALSE))","v":{"$error":"#REF!"}},{"$f":"VLOOKUP($AR39,#REF!,7,FALSE)","v":{"$error":"#REF!"}},"McIlroy",null,null,null,{"$error":"#REF!"}]
["Walter Smedley**",-6,null,null,null,null,null,null,null,null,null,null,null,null,null,{"$f":"P$11+P$10","v":1},null,null,null,null,null,null,null,null,null,null,null,null,null,null,null,{"$f":"AF$11+AF$10","v":1},null,null,{"$f":"AI$11+AI$10","v":2},null,null,{"$f":"AL$11+AL$10","v":-1},null,null,-3,null,null,"Phil Mickelson",{"$f":"IF(VLOOKUP($AR40,#REF!,6,FALSE)=\"E\",0,VLOOKUP($AR40,#REF!,6,FALSE))","v":{"$error":"#REF!"}},{"$f":"VLOOKUP($AR40,#REF!,7,FALSE)","v":{"$error":"#REF!"}},"Mickelson",null,null,null,{"$error":"#REF!"}]
["Mark Murdock",-4.5,null,null,null,null,null,null,null,null,null,null,null,null,null,{"$f":"P$11+P$10","v":1},null,null,null,null,null,null,null,null,null,null,null,null,null,null,{"$f":"AE$11+AE$10","v":9},{"$f":"AF$11+AF$10","v":1},null,null,null,null,null,null,{"$f":"AM$11+AM$10","v":-8},null,-1.5,null,null,"Ryan Moore",{"$f":"IF(VLOOKUP($AR41,#REF!,6,FALSE)=\"E\",0,VLOOKUP($AR41,#REF!,6,FALSE))","v":{"$error":"#REF!"}},{"$f":"VLOOKUP($AR41,#REF!,7,FALSE)","v":{"$error":"#REF!"}},"Moore",null,null,null,{"$error":"#REF!"}]
["Craig Heiser",-3,null,null,null,null,null,null,null,null,null,null,null,null,null,{"$f":"P$11+P$10","v":1},null,null,null,null,null,null,null,{"$f":"X$11+X$10","v":7},null,null,null,null,null,null,null,null,null,null,null,{"$f":"AJ$11+AJ$10","v":2},null,null,{"$f":"AM$11+AM$10","v":-8},null,-1,null,null,"Geoff Ogilvy",{"$f":"IF(VLOOKUP($AR42,#REF!,6,FALSE)=\"E\",0,VLOOKUP($AR42,#REF!,6,FALSE))","v":{"$error":"#REF!"}},{"$f":"VLOOKUP($AR42,#REF!,7,FALSE)","v":{"$error":"#REF!"}},"Ogilvy",null,null,null,{"$error":"#REF!"}]
["Andy Turner",-10.5,null,null,null,null,null,null,null,null,null,{"$f":"L$11+L$10","v":0},null,null,null,{"$f":"P$11+P$10","v":1},null,null,null,null,null,null,null,null,null,null,null,null,null,null,null,null,null,{"$f":"AH$11+AH$10","v":10},null,null,{"$f":"AK$11+AK$10","v":0},null,null,null,0.5,null,null,"Sean O'Hair",{"$f":"IF(VLOOKUP($AR43,#REF!,6,FALSE)=\"E\",0,VLOOKUP($AR43,#REF!,6,FALSE))","v":{"$error":"#REF!"}},{"$f":"VLOOKUP($AR43,#REF!,7,FALSE)","v":{"$error":"#REF!"}},"O'Hair",null,null,null,{"$error":"#REF!"}]
["Carl Berlinger",-12,null,null,null,null,null,null,null,null,null,null,null,{"$f":"N$11+N$10","v":12},null,{"$f":"P$11+P$10","v":1},null,null,null,null,null,null,null,null,null,null,null,{"$f":"AB$11+AB$10","v":-1},null,null,null,null,null,null,null,{"$f":"AJ$11+AJ$10","v":2},null,null,null,null,2,null,null,"Kenny Perry",{"$f":"IF(VLOOKUP($AR44,#REF!,6,FALSE)=\"E\",0,VLOOKUP($AR44,#REF!,6,FALSE))","v":{"$error":"#REF!"}},{"$f":"VLOOKUP($AR44,#REF!,7,FALSE)","v":{"$error":"#REF!"}},"Perry",null,null,null,{"$error":"#REF!"}]
["Danny Tinkler",-10.5,null,null,{"$f":"E$11+E$10","v":3},{"$f":"F$11+F$10","v":9},null,null,null,null,null,null,null,null,null,null,null,null,null,null,null,null,null,null,null,{"$f":"Z$11+Z$10","v":1},{"$f":"AA$11+AA$10","v":2},null,null,null,null,null,null,null,null,null,null,null,null,null,4.5,null,null,"Alvaro Quiros",{"$f":"IF(VLOOKUP($AR45,#REF!,6,FALSE)=\"E\",0,VLOOKUP($AR45,#REF!,6,FALSE))","v":{"$error":"#REF!"}},{"$f":"VLOOKUP($AR45,#REF!,7,FALSE)","v":{"$error":"#REF!"}},"Quiros",null,null,null,{"$error":"#REF!"}]
["Jenny Murdock",-9,null,null,null,null,null,null,null,null,null,null,null,{"$f":"N$11+N$10","v":12},null,{"$f":"P$11+P$10","v":1},null,null,{"$f":"S$11+S$10","v":-6},null,null,null,null,{"$f":"X$11+X$10","v":7},null,null,null,null,null,null,null,null,null,null,null,null,null,null,null,null,5,null,null,"Rory Sabbatini",{"$f":"IF(VLOOKUP($AR46,#REF!,6,FALSE)=\"E\",0,VLOOKUP($AR46,#REF!,6,FALSE))","v":{"$error":"#REF!"}},{"$f":"VLOOKUP($AR46,#REF!,7,FALSE)","v":{"$error":"#REF!"}},"Sabbatini",null,null,null,{"$error":"#REF!"}]
["Jeff Miers",-9,null,null,null,null,null,null,null,null,null,{"$f":"L$11+L$10","v":0},null,null,null,null,null,null,null,null,null,null,null,{"$f":"X$11+X$10","v":7},null,null,null,null,null,{"$f":"AD$11+AD$10","v":6},null,null,null,null,null,{"$f":"AJ$11+AJ$10","v":2},null,null,null,null,{"$f":"SUM(B47:AN47)","v":6},null,null,"Charl Schwartzel",{"$f":"IF(VLOOKUP($AR47,#REF!,6,FALSE)=\"E\",0,VLOOKUP($AR47,#REF!,6,FALSE))","v":{"$error":"#REF!"}},{"$f":"VLOOKUP($AR47,#REF!,7,FALSE)","v":{"$error":"#REF!"}},"Schwartzel",null,null,null,{"$error":"#REF!"}]
["Greg Watkins",-1.5,null,null,null,null,null,null,null,null,null,null,{"$f":"M$11+M$10","v":9},{"$f":"N$11+N$10","v":12},null,{"$f":"P$11+P$10","v":1},null,null,null,null,null,{"$f":"V$11+V$10","v":0},null,null,null,null,null,null,null,null,null,null,null,null,null,null,null,null,null,null,{"$f":"SUM(B48:AN48)","v":20.5},null,null,"Adam Scott",{"$f":"IF(VLOOKUP($AR48,#REF!,6,FALSE)=\"E\",0,VLOOKUP($AR48,#REF!,6,FALSE))","v":{"$error":"#REF!"}},{"$f":"VLOOKUP($AR48,#REF!,7,FALSE)","v":{"$error":"#REF!"}},"Scott",null,null,null,{"$error":"#REF!"}]
[null,null,null,null,null,null,null,null,null,null,null,null,null,null,null,null,null,null,null,null,null,null,null,null,null,null,null,null,null,null,null,null,null,null,null,null,null,null,null,null,null,null,null,"Vijay Singh",{"$f":"IF(VLOOKUP($AR49,#REF!,6,FALSE)=\"E\",0,VLOOKUP($AR49,#REF!,6,FALSE))","v":{"$error":"#REF!"}},{"$f":"VLOOKUP($AR49,#REF!,7,FALSE)","v":{"$error":"#REF!"}},"Singh",null,null,null,{"$error":"#REF!"}]
["Format:","Shizzle",null,null,null,null,null,null,null,null,null,null,null,null,null,null,null,null,null,null,null,null,null,null,null,null,null,null,null,null,null,null,null,null,null,null,null,null,null,null,null,null,null,"Steve Stricker",{"$f":"IF(VLOOKUP($AR50,#REF!,6,FALSE)=\"E\",0,VLOOKUP($AR50,#REF!,6,FALSE))","v":{"$error":"#REF!"}},{"$f":"VLOOKUP($AR50,#REF!,7,FALSE)","v":{"$error":"#REF!"}},"Stricker",null,null,null,{"$error":"#REF!"}]
["Venue:","Pine Forest (Gold to White)",null,null,null,null,null,null,null,null,null,null,null,null,null,null,null,null,null,null,null,null,null,null,null,null,null,null,null,null,null,null,null,null,null,null,null,null,null,null,null,null,null,"Camilo Villegas",{"$f":"IF(VLOOKUP($AR51,#REF!,6,FALSE)=\"E\",0,VLOOKUP($AR51,#REF!,6,FALSE))","v":{"$error":"#REF!"}},{"$f":"VLOOKUP($AR51,#REF!,7,FALSE)","v":{"$error":"#REF!"}},"Villegas",null,null,null,{"$error":"#REF!"}]
["MFC Champion:","Ronny Byrd",null,null,null,null,null,null,null,null,null,null,null,null,null,null,null,null,null,null,null,null,null,null,null,null,null,null,null,null,null,null,null,null,null,null,null,null,null,null,null,null,null,"Nick Watney",{"$f":"IF(VLOOKUP($AR52,#REF!,6,FALSE)=\"E\",0,VLOOKUP($AR52,#REF!,6,FALSE))","v":{"$error":"#REF!"}},{"$f":"VLOOKUP($AR52,#REF!,7,FALSE)","v":{"$error":"#REF!"}},"Watney",null,null,null,{"$error":"#REF!"}]
["Masters Winners:","Phil Mickelson, Anthony Kim, Hunter Mahan, Charl Schwartzel",null,null,null,null,null,null,null,null,null,null,null,null,null,null,null,null,null,null,null,null,null,null,null,null,null,null,null,null,null,null,null,null,null,null,null,null,null,null,null,null,null,"Mike Weir",{"$f":"IF(VLOOKUP($AR53,#REF!,6,FALSE)=\"E\",0,VLOOKUP($AR53,#REF!,6,FALSE))","v":{"$error":"#REF!"}},{"$f":"VLOOKUP($AR53,#REF!,7,FALSE)","v":{"$error":"#REF!"}},"Weir",null,null,null,{"$error":"#REF!"}]
[null,null,null,null,null,null,null,null,null,null,null,null,null,null,null,null,null,null,null,null,null,null,null,null,null,null,null,null,null,null,null,null,null,null,null,null,null,null,null,null,null,null,null,"Lee Westwood",{"$f":"IF(VLOOKUP($AR54,#REF!,6,FALSE)=\"E\",0,VLOOKUP($AR54,#REF!,6,FALSE))","v":{"$error":"#REF!"}},{"$f":"VLOOKUP($AR54,#REF!,7,FALSE)","v":{"$error":"#REF!"}},"Westwood"]
[null,null,null,null,null,null,null,null,null,null,null,null,null,null,null,null,null,null,null,null,null,null,null,null,null,null,null,null,null,null,null,null,null,null,null,null,null,null,null,null,null,null,null,"Tiger Woods",{"$f":"IF(VLOOKUP($AR55,#REF!,6,FALSE)=\"E\",0,VLOOKUP($AR55,#REF!,6,FALSE))","v":{"$error":"#REF!"}},{"$f":"VLOOKUP($AR55,#REF!,7,FALSE)","v":{"$error":"#REF!"}},"Woods"]

{"sheet":"2009","index":2,"n_rows":109,"n_cols":34,"rows_kept":109,"cut":false,"hidden":false,"merged":[[0,0,5,0],[0,1,5,26],[6,1,9,1],[6,2,8,2],[6,3,8,3],[6,5,8,5],[6,10,8,10],[6,11,8,11],[6,12,8,12],[46,1,46,27],[6,6,8,6],[6,7,8,7],[6,8,8,8],[6,13,8,13],[6,15,8,15],[6,19,8,19],[6,20,8,20],[6,16,8,16],[6,18,8,18],[45,1,45,27],[6,26,8,26],[6,27,10,27],[6,21,8,21],[6,22,8,22],[6,23,8,23],[6,14,8,14],[6,9,8,9],[6,24,8,24],[42,0,42,27],[44,1,44,27],[6,25,8,25],[6,17,8,17],[8,0,10,0],[43,1,43,27],[6,4,8,4]]}
[null,"Masters Friday 2009"]
[]
[]
[]
[]
[]
[null,"Pine Forest Score","HARNGTN","POULTER","WEIR","GARCIA","MIEKLSN","GOOSEN","CLARK","WATNEY","MCILROY","PERRY","WSTWOOD","CAMPBEL","STENSON","SINGH","KARLSON","CINK","OGILVY","ELS","JOHNSON","SUTRLND","O'HAIR","MAHAN","CASEY","KIM","COUPLES","Combined MFC & PGA Totals"]
[]
["MFC Golfer"]
[null,null,1,1,3,-5,-4,-1,-1,-1,1,-5,"E",-2,-2,-2,2,6,-2,-1,8,4,4,3,"E",-7,1]
[null,"Thru","F","F","F","F","F","F","F","F","F","F","F","F","F","F","F","F","F","F","F","F","F","F","F","F","F"]
["Frank McGill**",-9,null,null,null,null,null,null,null,null,null,null,null,null,null,null,null,null,{"$f":"S$10","v":-2},null,null,null,null,null,null,{"$f":"Z$10","v":-7},null,{"$f":"SUM(B12:AA12)","v":-18}]
["Davis Scarborough",-9,null,null,null,null,{"$f":"G$10","v":-4},null,null,null,null,null,null,null,null,null,null,null,-2,null,null,null,null,null,null,null,null,-15,null,null,null,null,"Score","Thru"]
["Don Vrba Sr.",-9,null,null,null,null,{"$f":"G$10","v":-4},null,null,null,null,null,null,null,null,null,null,null,-2,null,null,null,null,null,null,null,null,-15,null,null,"Aaron Baddeley",null,{"$f":"VLOOKUP($AE14,#REF!,6,FALSE)","v":{"$error":"#REF!"}},{"$f":"VLOOKUP($AE14,#REF!,7,FALSE)","v":{"$error":"#REF!"}}]
["Mark Ingebrigtson",-6,null,null,null,{"$f":"F$10","v":-5},null,null,null,null,null,null,null,null,null,null,null,null,-2,null,null,null,null,null,null,null,null,-13,null,null,"Adam Scott",null,{"$f":"VLOOKUP($AE15,#REF!,6,FALSE)","v":{"$error":"#REF!"}},{"$f":"VLOOKUP($AE15,#REF!,7,FALSE)","v":{"$error":"#REF!"}}]
["Don Vrba Jr.",-9,null,null,null,null,null,null,null,null,null,null,null,null,null,null,null,null,-2,null,null,null,null,null,{"$f":"Y$10","v":"E"},null,null,-11,null,null,"Alvaro Quiros",null,{"$f":"VLOOKUP($AE16,#REF!,6,FALSE)","v":{"$error":"#REF!"}},{"$f":"VLOOKUP($AE16,#REF!,7,FALSE)","v":{"$error":"#REF!"}}]
["Kim Phillips",-1,null,null,null,null,null,null,null,null,null,null,null,null,null,null,null,null,-2,null,null,null,null,null,null,{"$f":"Z$10","v":-7},null,-10,null,null,"Andres Romero",null,{"$f":"VLOOKUP($AE17,#REF!,6,FALSE)","v":{"$error":"#REF!"}},{"$f":"VLOOKUP($AE17,#REF!,7,FALSE)","v":{"$error":"#REF!"}}]
["Matt Stone",-6,null,null,null,null,null,null,null,{"$f":"J$10","v":-1},null,null,null,null,null,{"$f":"P$10","v":-2},null,null,null,null,null,null,null,null,null,null,null,-9,null,null,"Angel Cabrera",null,{"$f":"VLOOKUP($AE18,#REF!,6,FALSE)","v":{"$error":"#REF!"}},{"$f":"VLOOKUP($AE18,#REF!,7,FALSE)","v":{"$error":"#REF!"}}]
["Steve Robinson",-3,null,null,null,null,null,null,null,null,{"$f":"K$10","v":1},null,null,null,null,null,null,null,null,null,null,null,null,null,null,{"$f":"Z$10","v":-7},null,-9,null,null,"Anthony Kim",null,{"$f":"VLOOKUP($AE19,#REF!,6,FALSE)","v":{"$error":"#REF!"}},{"$f":"VLOOKUP($AE19,#REF!,7,FALSE)","v":{"$error":"#REF!"}}]
["Mike Walter",-5,null,null,null,null,null,null,{"$f":"I$10","v":-1},null,null,null,null,null,null,null,null,null,{"$f":"S$10","v":-2},null,null,null,null,null,null,null,null,-8,null,null,"Ben Crenshaw",null,{"$f":"VLOOKUP($AE20,#REF!,6,FALSE)","v":{"$error":"#REF!"}},{"$f":"VLOOKUP($AE20,#REF!,7,FALSE)","v":{"$error":"#REF!"}}]
["Robert Barnsy",-5,null,null,null,null,null,{"$f":"H$10","v":-1},null,{"$f":"J$10","v":-1},null,null,null,null,null,null,null,null,null,null,null,null,null,null,null,null,null,-7,null,null,"Ben Curtis",null,{"$f":"VLOOKUP($AE21,#REF!,6,FALSE)","v":{"$error":"#REF!"}},{"$f":"VLOOKUP($AE21,#REF!,7,FALSE)","v":{"$error":"#REF!"}}]
["Danny Tinkler",-8,{"$f":"C$10","v":1},null,null,null,null,null,null,null,null,null,null,null,null,null,null,null,null,null,null,null,null,null,null,null,{"$f":"AA$10","v":1},-6,null,null,"Bernhard Langer",null,{"$f":"VLOOKUP($AE22,#REF!,6,FALSE)","v":{"$error":"#REF!"}},{"$f":"VLOOKUP($AE22,#REF!,7,FALSE)","v":{"$error":"#REF!"}}]
["Heidi Walter",-5,null,null,null,null,{"$f":"G$10","v":-4},null,null,null,null,null,null,null,null,null,null,null,null,null,null,null,null,{"$f":"X$10","v":3},null,null,null,-6,null,null,"Billy Mayfair",null,{"$f":"VLOOKUP($AE23,#REF!,6,FALSE)","v":{"$error":"#REF!"}},{"$f":"VLOOKUP($AE23,#REF!,7,FALSE)","v":{"$error":"#REF!"}}]
["John Phillips",-4,null,null,null,null,null,null,null,null,null,null,null,null,null,null,null,null,{"$f":"S$10","v":-2},null,null,null,null,null,{"$f":"Y$10","v":"E"},null,null,-6,null,null,"Boo Weekley",null,{"$f":"VLOOKUP($AE24,#REF!,6,FALSE)","v":{"$error":"#REF!"}},{"$f":"VLOOKUP($AE24,#REF!,7,FALSE)","v":{"$error":"#REF!"}}]
["Peter Vescovo",-7,{"$f":"C$10","v":1},null,null,null,null,null,null,null,null,null,{"$f":"M$10","v":"E"},null,null,null,null,null,null,null,null,null,null,null,null,null,null,-6,null,null,"Brandt Snedeker",null,{"$f":"VLOOKUP($AE25,#REF!,6,FALSE)","v":{"$error":"#REF!"}},{"$f":"VLOOKUP($AE25,#REF!,7,FALSE)","v":{"$error":"#REF!"}}]
["Ric Booth ",-1,null,null,null,null,null,null,null,null,null,{"$f":"L$10","v":-5},null,null,null,null,null,null,null,null,null,null,null,null,{"$f":"Y$10","v":"E"},null,null,-6,null,null,"Briny Baird",null,{"$f":"VLOOKUP($AE26,#REF!,6,FALSE)","v":{"$error":"#REF!"}},{"$f":"VLOOKUP($AE26,#REF!,7,FALSE)","v":{"$error":"#REF!"}}]
["Craig Heiser",-3,null,null,null,null,null,null,null,null,null,null,null,null,{"$f":"O$10","v":-2},null,null,null,null,null,null,null,null,null,{"$f":"Y$10","v":"E"},null,null,-5,null,null,"Bubba Watson",null,{"$f":"VLOOKUP($AE27,#REF!,6,FALSE)","v":{"$error":"#REF!"}},{"$f":"VLOOKUP($AE27,#REF!,7,FALSE)","v":{"$error":"#REF!"}}]
["Jeff Miers",-6,null,null,null,null,null,null,null,null,null,null,null,null,null,null,null,null,{"$f":"S$10","v":-2},null,null,null,null,{"$f":"X$10","v":3},null,null,null,-5,null,null,"Camilo Villegas",null,{"$f":"VLOOKUP($AE28,#REF!,6,FALSE)","v":{"$error":"#REF!"}},{"$f":"VLOOKUP($AE28,#REF!,7,FALSE)","v":{"$error":"#REF!"}}]
["Mark Murdock",-2,null,null,null,null,null,{"$f":"H$10","v":-1},null,null,null,null,null,null,{"$f":"O$10","v":-2},null,null,null,null,null,null,null,null,null,null,null,null,-5,null,null,"Carl Pettersson",null,{"$f":"VLOOKUP($AE29,#REF!,6,FALSE)","v":{"$error":"#REF!"}},{"$f":"VLOOKUP($AE29,#REF!,7,FALSE)","v":{"$error":"#REF!"}}]
["Matt Blackmon",-3,null,null,null,null,null,{"$f":"H$10","v":-1},null,null,null,null,null,null,null,null,null,null,null,{"$f":"T$10","v":-1},null,null,null,null,null,null,null,-5,null,null,"Chad Campbell",null,{"$f":"VLOOKUP($AE30,#REF!,6,FALSE)","v":{"$error":"#REF!"}},{"$f":"VLOOKUP($AE30,#REF!,7,FALSE)","v":{"$error":"#REF!"}}]
["Mike Gandolfo**",-6,null,null,{"$f":"E$10","v":3},null,null,null,null,null,null,null,null,{"$f":"N$10","v":-2},null,null,null,null,null,null,null,null,null,null,null,null,null,-5,null,null,"Chez Reavie",null,{"$f":"VLOOKUP($AE31,#REF!,6,FALSE)","v":{"$error":"#REF!"}},{"$f":"VLOOKUP($AE31,#REF!,7,FALSE)","v":{"$error":"#REF!"}}]
["Tim Waikem",-3,null,null,null,null,null,null,null,null,null,null,null,null,null,null,null,null,{"$f":"S$10","v":-2},null,null,null,null,null,{"$f":"Y$10","v":"E"},null,null,-5,null,null,"Craig Stadler",null,{"$f":"VLOOKUP($AE32,#REF!,6,FALSE)","v":{"$error":"#REF!"}},{"$f":"VLOOKUP($AE32,#REF!,7,FALSE)","v":{"$error":"#REF!"}}]
["Eric Lauritzen**",-3,{"$f":"C$10","v":1},null,null,null,null,null,null,null,null,null,null,null,null,null,null,null,{"$f":"S$10","v":-2},null,null,null,null,null,null,null,null,-4,null,null,"D.J. Trahan",null,{"$f":"VLOOKUP($AE33,#REF!,6,FALSE)","v":{"$error":"#REF!"}},{"$f":"VLOOKUP($AE33,#REF!,7,FALSE)","v":{"$error":"#REF!"}}]
["Peter Dennis",-6,null,null,null,null,null,null,null,null,null,null,{"$f":"M$10","v":"E"},null,null,null,{"$f":"Q$10","v":2},null,null,null,null,null,null,null,null,null,null,-4,null,null,"Danny Lee",null,{"$f":"VLOOKUP($AE34,#REF!,6,FALSE)","v":{"$error":"#REF!"}},{"$f":"VLOOKUP($AE34,#REF!,7,FALSE)","v":{"$error":"#REF!"}}]
["Carl Berlinger",-3,{"$f":"C$10","v":1},null,null,null,null,null,null,{"$f":"J$10","v":-1},null,null,null,null,null,null,null,null,null,null,null,null,null,null,null,null,null,-3,null,null,"Drew Kittleson",null,{"$f":"VLOOKUP($AE35,#REF!,6,FALSE)","v":{"$error":"#REF!"}},{"$f":"VLOOKUP($AE35,#REF!,7,FALSE)","v":{"$error":"#REF!"}}]
["Greg Watkins",-3,null,{"$f":"D$10","v":1},null,null,null,null,null,{"$f":"J$10","v":-1},null,null,null,null,null,null,null,null,null,null,null,null,null,null,null,null,null,-3,null,null,"Dudley Hart",null,{"$f":"VLOOKUP($AE36,#REF!,6,FALSE)","v":{"$error":"#REF!"}},{"$f":"VLOOKUP($AE36,#REF!,7,FALSE)","v":{"$error":"#REF!"}}]
["Don Ashley**","E",{"$f":"C$10","v":1},null,null,null,null,null,null,null,null,null,null,null,null,null,null,null,{"$f":"S$10","v":-2},null,null,null,null,null,null,null,null,-1,null,null,"Dustin Johnson",null,{"$f":"VLOOKUP($AE37,#REF!,6,FALSE)","v":{"$error":"#REF!"}},{"$f":"VLOOKUP($AE37,#REF!,7,FALSE)","v":{"$error":"#REF!"}}]
["Walter Smedley**",-3,null,null,null,null,null,null,null,null,null,null,null,null,null,{"$f":"P$10","v":-2},null,null,null,null,null,{"$f":"V$10","v":4},null,null,null,null,null,-1,null,null,"Ernie Els",null,{"$f":"VLOOKUP($AE38,#REF!,6,FALSE)","v":{"$error":"#REF!"}},{"$f":"VLOOKUP($AE38,#REF!,7,FALSE)","v":{"$error":"#REF!"}}]
["Andy Turner","E",null,{"$f":"D$10","v":1},null,null,null,null,null,{"$f":"J$10","v":-1},null,null,null,null,null,null,null,null,null,null,null,null,null,null,null,null,null,0,null,null,"Fred Couples",null,{"$f":"VLOOKUP($AE39,#REF!,6,FALSE)","v":{"$error":"#REF!"}},{"$f":"VLOOKUP($AE39,#REF!,7,FALSE)","v":{"$error":"#REF!"}}]
["Gene Brumbelow",-6,null,null,null,null,null,null,null,null,null,null,null,null,null,null,null,null,null,null,null,null,{"$f":"W$10","v":4},{"$f":"X$10","v":3},null,null,null,1,null,null,"Fuzzy Zoeller",null,{"$f":"VLOOKUP($AE40,#REF!,6,FALSE)","v":{"$error":"#REF!"}},{"$f":"VLOOKUP($AE40,#REF!,7,FALSE)","v":{"$error":"#REF!"}}]
["Nicole Cooper",-7,{"$f":"C$10","v":1},null,null,null,null,null,null,null,null,null,null,null,null,null,null,null,null,null,{"$f":"U$10","v":8},null,null,null,null,null,null,2,null,null,"Gary Player",null,{"$f":"VLOOKUP($AE41,#REF!,6,FALSE)","v":{"$error":"#REF!"}},{"$f":"VLOOKUP($AE41,#REF!,7,FALSE)","v":{"$error":"#REF!"}}]
["Jenny Murdock",-5,null,null,null,null,null,null,null,null,null,null,null,null,null,null,null,{"$f":"R$10","v":6},null,null,{"$f":"U$10","v":8},null,null,null,null,null,null,9,null,null,"Geoff Ogilvy",null,{"$f":"VLOOKUP($AE42,#REF!,6,FALSE)","v":{"$error":"#REF!"}},{"$f":"VLOOKUP($AE42,#REF!,7,FALSE)","v":{"$error":"#REF!"}}]
[null,null,null,null,null,null,null,null,null,null,null,null,null,null,null,null,null,null,null,null,null,null,null,null,null,null,null,null,null,null,"Graeme McDowell",null,{"$f":"VLOOKUP($AE43,#REF!,6,FALSE)","v":{"$error":"#REF!"}},{"$f":"VLOOKUP($AE43,#REF!,7,FALSE)","v":{"$error":"#REF!"}}]
["Format:","Shizzle",null,null,null,null,null,null,null,null,null,null,null,null,null,null,null,null,null,null,null,null,null,null,null,null,null,null,null,null,"Greg Norman",null,{"$f":"VLOOKUP($AE44,#REF!,6,FALSE)","v":{"$error":"#REF!"}},{"$f":"VLOOKUP($AE44,#REF!,7,FALSE)","v":{"$error":"#REF!"}}]
["Venue:","Pine Forest (Gold to White)",null,null,null,null,null,null,null,null,null,null,null,null,null,null,null,null,null,null,null,null,null,null,null,null,null,null,null,null,"Henrik Stenson",null,{"$f":"VLOOKUP($AE45,#REF!,6,FALSE)","v":{"$error":"#REF!"}},{"$f":"VLOOKUP($AE45,#REF!,7,FALSE)","v":{"$error":"#REF!"}}]
["MFC Champion:","Frank McGill - Ozone Club Candidate",null,null,null,null,null,null,null,null,null,null,null,null,null,null,null,null,null,null,null,null,null,null,null,null,null,null,null,null,"Hunter Mahan",null,{"$f":"VLOOKUP($AE46,#REF!,6,FALSE)","v":{"$error":"#REF!"}},{"$f":"VLOOKUP($AE46,#REF!,7,FALSE)","v":{"$error":"#REF!"}}]
["Masters Winners:","Anthony Kim (-7); Kenny Perry/Sergio Garcia (-5)",null,null,null,null,null,null,null,null,null,null,null,null,null,null,null,null,null,null,null,null,null,null,null,null,null,null,null,null,"Ian Poulter",null,{"$f":"VLOOKUP($AE47,#REF!,6,FALSE)","v":{"$error":"#REF!"}},{"$f":"VLOOKUP($AE47,#REF!,7,FALSE)","v":{"$error":"#REF!"}}]
[null,null,null,null,null,null,null,null,null,null,null,null,null,null,null,null,null,null,null,null,null,null,null,null,null,null,null,null,null,null,"Ian Woosnam",null,{"$f":"VLOOKUP($AE48,#REF!,6,FALSE)","v":{"$error":"#REF!"}},{"$f":"VLOOKUP($AE48,#REF!,7,FALSE)","v":{"$error":"#REF!"}}]
[null,null,null,null,null,null,null,null,null,null,null,null,null,null,null,null,null,null,null,null,null,null,null,null,null,null,null,null,null,null,"Jack Newman",null,{"$f":"VLOOKUP($AE49,#REF!,6,FALSE)","v":{"$error":"#REF!"}},{"$f":"VLOOKUP($AE49,#REF!,7,FALSE)","v":{"$error":"#REF!"}}]
[null,null,null,null,null,null,null,null,null,null,null,null,null,null,null,null,null,null,null,null,null,null,null,null,null,null,null,null,null,null,"Jeev Milkha Singh",null,{"$f":"VLOOKUP($AE50,#REF!,6,FALSE)","v":{"$error":"#REF!"}},{"$f":"VLOOKUP($AE50,#REF!,7,FALSE)","v":{"$error":"#REF!"}}]
[null,null,null,null,null,null,null,null,null,null,null,null,null,null,null,null,null,null,null,null,null,null,null,null,null,null,null,null,null,null,"Jim Furyk",null,{"$f":"VLOOKUP($AE51,#REF!,6,FALSE)","v":{"$error":"#REF!"}},{"$f":"VLOOKUP($AE51,#REF!,7,FALSE)","v":{"$error":"#REF!"}}]
[null,null,null,null,null,null,null,null,null,null,null,null,null,null,null,null,null,null,null,null,null,null,null,null,null,null,null,null,null,null,"John Merrick",null,{"$f":"VLOOKUP($AE52,#REF!,6,FALSE)","v":{"$error":"#REF!"}},{"$f":"VLOOKUP($AE52,#REF!,7,FALSE)","v":{"$error":"#REF!"}}]
[null,null,null,null,null,null,null,null,null,null,null,null,null,null,null,null,null,null,null,null,null,null,null,null,null,null,null,null,null,null,"Jose Maria Olazabal",null,{"$f":"VLOOKUP($AE53,#REF!,6,FALSE)","v":{"$error":"#REF!"}},{"$f":"VLOOKUP($AE53,#REF!,7,FALSE)","v":{"$error":"#REF!"}}]
[null,null,null,null,null,null,null,null,null,null,null,null,null,null,null,null,null,null,null,null,null,null,null,null,null,null,null,null,null,null,"Justin Leonard",null,{"$f":"VLOOKUP($AE54,#REF!,6,FALSE)","v":{"$error":"#REF!"}},{"$f":"VLOOKUP($AE54,#REF!,7,FALSE)","v":{"$error":"#REF!"}}]
[null,null,null,null,null,null,null,null,null,null,null,null,null,null,null,null,null,null,null,null,null,null,null,null,null,null,null,null,null,null,"Justin Rose",null,{"$f":"VLOOKUP($AE55,#REF!,6,FALSE)","v":{"$error":"#REF!"}},{"$f":"VLOOKUP($AE55,#REF!,7,FALSE)","v":{"$error":"#REF!"}}]
[null,null,null,null,null,null,null,null,null,null,null,null,null,null,null,null,null,null,null,null,null,null,null,null,null,null,null,null,null,null,"K.J. Choi",null,{"$f":"VLOOKUP($AE56,#REF!,6,FALSE)","v":{"$error":"#REF!"}},{"$f":"VLOOKUP($AE56,#REF!,7,FALSE)","v":{"$error":"#REF!"}}]
[null,null,null,null,null,null,null,null,null,null,null,null,null,null,null,null,null,null,null,null,null,null,null,null,null,null,null,null,null,null,"Ken Duke",null,{"$f":"VLOOKUP($AE57,#REF!,6,FALSE)","v":{"$error":"#REF!"}},{"$f":"VLOOKUP($AE57,#REF!,7,FALSE)","v":{"$error":"#REF!"}}]
[null,null,null,null,null,null,null,null,null,null,null,null,null,null,null,null,null,null,null,null,null,null,null,null,null,null,null,null,null,null,"Kenny Perry",null,{"$f":"VLOOKUP($AE58,#REF!,6,FALSE)","v":{"$error":"#REF!"}},{"$f":"VLOOKUP($AE58,#REF!,7,FALSE)","v":{"$error":"#REF!"}}]
[null,null,null,null,null,null,null,null,null,null,null,null,null,null,null,null,null,null,null,null,null,null,null,null,null,null,null,null,null,null,"Kevin Sutherland",null,{"$f":"VLOOKUP($AE59,#REF!,6,FALSE)","v":{"$error":"#REF!"}},{"$f":"VLOOKUP($AE59,#REF!,7,FALSE)","v":{"$error":"#REF!"}}]
[null,null,null,null,null,null,null,null,null,null,null,null,null,null,null,null,null,null,null,null,null,null,null,null,null,null,null,null,null,null,"Larry Mize",null,{"$f":"VLOOKUP($AE60,#REF!,6,FALSE)","v":{"$error":"#REF!"}},{"$f":"VLOOKUP($AE60,#REF!,7,FALSE)","v":{"$error":"#REF!"}}]
[null,null,null,null,null,null,null,null,null,null,null,null,null,null,null,null,null,null,null,null,null,null,null,null,null,null,null,null,null,null,"Lee Westwood",null,{"$f":"VLOOKUP($AE61,#REF!,6,FALSE)","v":{"$error":"#REF!"}},{"$f":"VLOOKUP($AE61,#REF!,7,FALSE)","v":{"$error":"#REF!"}}]
[null,null,null,null,null,null,null,null,null,null,null,null,null,null,null,null,null,null,null,null,null,null,null,null,null,null,null,null,null,null,"Louis Oosthuizen",null,{"$f":"VLOOKUP($AE62,#REF!,6,FALSE)","v":{"$error":"#REF!"}},{"$f":"VLOOKUP($AE62,#REF!,7,FALSE)","v":{"$error":"#REF!"}}]
[null,null,null,null,null,null,null,null,null,null,null,null,null,null,null,null,null,null,null,null,null,null,null,null,null,null,null,null,null,null,"Luke Donald",null,{"$f":"VLOOKUP($AE63,#REF!,6,FALSE)","v":{"$error":"#REF!"}},{"$f":"VLOOKUP($AE63,#REF!,7,FALSE)","v":{"$error":"#REF!"}}]
[null,null,null,null,null,null,null,null,null,null,null,null,null,null,null,null,null,null,null,null,null,null,null,null,null,null,null,null,null,null,"Mark O'Meara",null,{"$f":"VLOOKUP($AE64,#REF!,6,FALSE)","v":{"$error":"#REF!"}},{"$f":"VLOOKUP($AE64,#REF!,7,FALSE)","v":{"$error":"#REF!"}}]
[null,null,null,null,null,null,null,null,null,null,null,null,null,null,null,null,null,null,null,null,null,null,null,null,null,null,null,null,null,null,"Martin Kaymer",null,{"$f":"VLOOKUP($AE65,#REF!,6,FALSE)","v":{"$error":"#REF!"}},{"$f":"VLOOKUP($AE65,#REF!,7,FALSE)","v":{"$error":"#REF!"}}]
[null,null,null,null,null,null,null,null,null,null,null,null,null,null,null,null,null,null,null,null,null,null,null,null,null,null,null,null,null,null,"Mathew Goggin",null,{"$f":"VLOOKUP($AE66,#REF!,6,FALSE)","v":{"$error":"#REF!"}},{"$f":"VLOOKUP($AE66,#REF!,7,FALSE)","v":{"$error":"#REF!"}}]
[null,null,null,null,null,null,null,null,null,null,null,null,null,null,null,null,null,null,null,null,null,null,null,null,null,null,null,null,null,null,"Michael Campbell",null,{"$f":"VLOOKUP($AE67,#REF!,6,FALSE)","v":{"$error":"#REF!"}},{"$f":"VLOOKUP($AE67,#REF!,7,FALSE)","v":{"$error":"#REF!"}}]
[null,null,null,null,null,null,null,null,null,null,null,null,null,null,null,null,null,null,null,null,null,null,null,null,null,null,null,null,null,null,"Miguel Angel Jimenez",null,{"$f":"VLOOKUP($AE68,#REF!,6,FALSE)","v":{"$error":"#REF!"}},{"$f":"VLOOKUP($AE68,#REF!,7,FALSE)","v":{"$error":"#REF!"}}]
[null,null,null,null,null,null,null,null,null,null,null,null,null,null,null,null,null,null,null,null,null,null,null,null,null,null,null,null,null,null,"Mike Weir",null,{"$f":"VLOOKUP($AE69,#REF!,6,FALSE)","v":{"$error":"#REF!"}},{"$f":"VLOOKUP($AE69,#REF!,7,FALSE)","v":{"$error":"#REF!"}}]
[null,null,null,null,null,null,null,null,null,null,null,null,null,null,null,null,null,null,null,null,null,null,null,null,null,null,null,null,null,null,"Nick Watney",null,{"$f":"VLOOKUP($AE70,#REF!,6,FALSE)","v":{"$error":"#REF!"}},{"$f":"VLOOKUP($AE70,#REF!,7,FALSE)","v":{"$error":"#REF!"}}]
[null,null,null,null,null,null,null,null,null,null,null,null,null,null,null,null,null,null,null,null,null,null,null,null,null,null,null,null,null,null,"Oliver Wilson",null,{"$f":"VLOOKUP($AE71,#REF!,6,FALSE)","v":{"$error":"#REF!"}},{"$f":"VLOOKUP($AE71,#REF!,7,FALSE)","v":{"$error":"#REF!"}}]
[null,null,null,null,null,null,null,null,null,null,null,null,null,null,null,null,null,null,null,null,null,null,null,null,null,null,null,null,null,null,"Padraig Harrington",null,{"$f":"VLOOKUP($AE72,#REF!,6,FALSE)","v":{"$error":"#REF!"}},{"$f":"VLOOKUP($AE72,#REF!,7,FALSE)","v":{"$error":"#REF!"}}]
[null,null,null,null,null,null,null,null,null,null,null,null,null,null,null,null,null,null,null,null,null,null,null,null,null,null,null,null,null,null,"Pat Perez",null,{"$f":"VLOOKUP($AE73,#REF!,6,FALSE)","v":{"$error":"#REF!"}},{"$f":"VLOOKUP($AE73,#REF!,7,FALSE)","v":{"$error":"#REF!"}}]
[null,null,null,null,null,null,null,null,null,null,null,null,null,null,null,null,null,null,null,null,null,null,null,null,null,null,null,null,null,null,"Paul Casey",null,{"$f":"VLOOKUP($AE74,#REF!,6,FALSE)","v":{"$error":"#REF!"}},{"$f":"VLOOKUP($AE74,#REF!,7,FALSE)","v":{"$error":"#REF!"}}]
[null,null,null,null,null,null,null,null,null,null,null,null,null,null,null,null,null,null,null,null,null,null,null,null,null,null,null,null,null,null,"Phil Mickelson",null,{"$f":"VLOOKUP($AE75,#REF!,6,FALSE)","v":{"$error":"#REF!"}},{"$f":"VLOOKUP($AE75,#REF!,7,FALSE)","v":{"$error":"#REF!"}}]
[null,null,null,null,null,null,null,null,null,null,null,null,null,null,null,null,null,null,null,null,null,null,null,null,null,null,null,null,null,null,"Prayad Marksaeng",null,{"$f":"VLOOKUP($AE76,#REF!,6,FALSE)","v":{"$error":"#REF!"}},{"$f":"VLOOKUP($AE76,#REF!,7,FALSE)","v":{"$error":"#REF!"}}]
[null,null,null,null,null,null,null,null,null,null,null,null,null,null,null,null,null,null,null,null,null,null,null,null,null,null,null,null,null,null,"Raymond Floyd",null,{"$f":"VLOOKUP($AE77,#REF!,6,FALSE)","v":{"$error":"#REF!"}},{"$f":"VLOOKUP($AE77,#REF!,7,FALSE)","v":{"$error":"#REF!"}}]
[null,null,null,null,null,null,null,null,null,null,null,null,null,null,null,null,null,null,null,null,null,null,null,null,null,null,null,null,null,null,"Reinier Saxton",null,{"$f":"VLOOKUP($AE78,#REF!,6,FALSE)","v":{"$error":"#REF!"}},{"$f":"VLOOKUP($AE78,#REF!,7,FALSE)","v":{"$error":"#REF!"}}]
[null,null,null,null,null,null,null,null,null,null,null,null,null,null,null,null,null,null,null,null,null,null,null,null,null,null,null,null,null,null,"Retief Goosen",null,{"$f":"VLOOKUP($AE79,#REF!,6,FALSE)","v":{"$error":"#REF!"}},{"$f":"VLOOKUP($AE79,#REF!,7,FALSE)","v":{"$error":"#REF!"}}]
[null,null,null,null,null,null,null,null,null,null,null,null,null,null,null,null,null,null,null,null,null,null,null,null,null,null,null,null,null,null,"Richard Sterne",null,{"$f":"VLOOKUP($AE80,#REF!,6,FALSE)","v":{"$error":"#REF!"}},{"$f":"VLOOKUP($AE80,#REF!,7,FALSE)","v":{"$error":"#REF!"}}]
[null,null,null,null,null,null,null,null,null,null,null,null,null,null,null,null,null,null,null,null,null,null,null,null,null,null,null,null,null,null,"Robert Allenby",null,{"$f":"VLOOKUP($AE81,#REF!,6,FALSE)","v":{"$error":"#REF!"}},{"$f":"VLOOKUP($AE81,#REF!,7,FALSE)","v":{"$error":"#REF!"}}]
[null,null,null,null,null,null,null,null,null,null,null,null,null,null,null,null,null,null,null,null,null,null,null,null,null,null,null,null,null,null,"Robert Karlsson",null,{"$f":"VLOOKUP($AE82,#REF!,6,FALSE)","v":{"$error":"#REF!"}},{"$f":"VLOOKUP($AE82,#REF!,7,FALSE)","v":{"$error":"#REF!"}}]
[null,null,null,null,null,null,null,null,null,null,null,null,null,null,null,null,null,null,null,null,null,null,null,null,null,null,null,null,null,null,"Rocco Mediate",null,{"$f":"VLOOKUP($AE83,#REF!,6,FALSE)","v":{"$error":"#REF!"}},{"$f":"VLOOKUP($AE83,#REF!,7,FALSE)","v":{"$error":"#REF!"}}]
[null,null,null,null,null,null,null,null,null,null,null,null,null,null,null,null,null,null,null,null,null,null,null,null,null,null,null,null,null,null,"Rory McIlroy",null,{"$f":"VLOOKUP($AE84,#REF!,6,FALSE)","v":{"$error":"#REF!"}},{"$f":"VLOOKUP($AE84,#REF!,7,FALSE)","v":{"$error":"#REF!"}}]
[null,null,null,null,null,null,null,null,null,null,null,null,null,null,null,null,null,null,null,null,null,null,null,null,null,null,null,null,null,null,"Rory Sabbatini",null,{"$f":"VLOOKUP($AE85,#REF!,6,FALSE)","v":{"$error":"#REF!"}},{"$f":"VLOOKUP($AE85,#REF!,7,FALSE)","v":{"$error":"#REF!"}}]
[null,null,null,null,null,null,null,null,null,null,null,null,null,null,null,null,null,null,null,null,null,null,null,null,null,null,null,null,null,null,"Ross Fisher",null,{"$f":"VLOOKUP($AE86,#REF!,6,FALSE)","v":{"$error":"#REF!"}},{"$f":"VLOOKUP($AE86,#REF!,7,FALSE)","v":{"$error":"#REF!"}}]
[null,null,null,null,null,null,null,null,null,null,null,null,null,null,null,null,null,null,null,null,null,null,null,null,null,null,null,null,null,null,"Ryo Ishikawa",null,{"$f":"VLOOKUP($AE87,#REF!,6,FALSE)","v":{"$error":"#REF!"}},{"$f":"VLOOKUP($AE87,#REF!,7,FALSE)","v":{"$error":"#REF!"}}]
[null,null,null,null,null,null,null,null,null,null,null,null,null,null,null,null,null,null,null,null,null,null,null,null,null,null,null,null,null,null,"Ryuji Imada",null,{"$f":"VLOOKUP($AE88,#REF!,6,FALSE)","v":{"$error":"#REF!"}},{"$f":"VLOOKUP($AE88,#REF!,7,FALSE)","v":{"$error":"#REF!"}}]
[null,null,null,null,null,null,null,null,null,null,null,null,null,null,null,null,null,null,null,null,null,null,null,null,null,null,null,null,null,null,"Sandy Lyle",null,{"$f":"VLOOKUP($AE89,#REF!,6,FALSE)","v":{"$error":"#REF!"}},{"$f":"VLOOKUP($AE89,#REF!,7,FALSE)","v":{"$error":"#REF!"}}]
[null,null,null,null,null,null,null,null,null,null,null,null,null,null,null,null,null,null,null,null,null,null,null,null,null,null,null,null,null,null,"Sean O'Hair",null,{"$f":"VLOOKUP($AE90,#REF!,6,FALSE)","v":{"$error":"#REF!"}},{"$f":"VLOOKUP($AE90,#REF!,7,FALSE)","v":{"$error":"#REF!"}}]
[null,null,null,null,null,null,null,null,null,null,null,null,null,null,null,null,null,null,null,null,null,null,null,null,null,null,null,null,null,null,"Sergio Garcia",null,{"$f":"VLOOKUP($AE91,#REF!,6,FALSE)","v":{"$error":"#REF!"}},{"$f":"VLOOKUP($AE91,#REF!,7,FALSE)","v":{"$error":"#REF!"}}]
[null,null,null,null,null,null,null,null,null,null,null,null,null,null,null,null,null,null,null,null,null,null,null,null,null,null,null,null,null,null,"Shingo Katayama",null,{"$f":"VLOOKUP($AE92,#REF!,6,FALSE)","v":{"$error":"#REF!"}},{"$f":"VLOOKUP($AE92,#REF!,7,FALSE)","v":{"$error":"#REF!"}}]
[null,null,null,null,null,null,null,null,null,null,null,null,null,null,null,null,null,null,null,null,null,null,null,null,null,null,null,null,null,null,"Soren Hansen",null,{"$f":"VLOOKUP($AE93,#REF!,6,FALSE)","v":{"$error":"#REF!"}},{"$f":"VLOOKUP($AE93,#REF!,7,FALSE)","v":{"$error":"#REF!"}}]
[null,null,null,null,null,null,null,null,null,null,null,null,null,null,null,null,null,null,null,null,null,null,null,null,null,null,null,null,null,null,"Soren Kjeldsen",null,{"$f":"VLOOKUP($AE94,#REF!,6,FALSE)","v":{"$error":"#REF!"}},{"$f":"VLOOKUP($AE94,#REF!,7,FALSE)","v":{"$error":"#REF!"}}]
[null,null,null,null,null,null,null,null,null,null,null,null,null,null,null,null,null,null,null,null,null,null,null,null,null,null,null,null,null,null,"Stephen Ames",null,{"$f":"VLOOKUP($AE95,#REF!,6,FALSE)","v":{"$error":"#REF!"}},{"$f":"VLOOKUP($AE95,#REF!,7,FALSE)","v":{"$error":"#REF!"}}]
[null,null,null,null,null,null,null,null,null,null,null,null,null,null,null,null,null,null,null,null,null,null,null,null,null,null,null,null,null,null,"Steve Flesch",null,{"$f":"VLOOKUP($AE96,#REF!,6,FALSE)","v":{"$error":"#REF!"}},{"$f":"VLOOKUP($AE96,#REF!,7,FALSE)","v":{"$error":"#REF!"}}]
[null,null,null,null,null,null,null,null,null,null,null,null,null,null,null,null,null,null,null,null,null,null,null,null,null,null,null,null,null,null,"Steve Stricker",null,{"$f":"VLOOKUP($AE97,#REF!,6,FALSE)","v":{"$error":"#REF!"}},{"$f":"VLOOKUP($AE97,#REF!,7,FALSE)","v":{"$error":"#REF!"}}]
[null,null,null,null,null,null,null,null,null,null,null,null,null,null,null,null,null,null,null,null,null,null,null,null,null,null,null,null,null,null,"Steve Wilson",null,{"$f":"VLOOKUP($AE98,#REF!,6,FALSE)","v":{"$error":"#REF!"}},{"$f":"VLOOKUP($AE98,#REF!,7,FALSE)","v":{"$error":"#REF!"}}]
[null,null,null,null,null,null,null,null,null,null,null,null,null,null,null,null,null,null,null,null,null,null,null,null,null,null,null,null,null,null,"Stewart Cink",null,{"$f":"VLOOKUP($AE99,#REF!,6,FALSE)","v":{"$error":"#REF!"}},{"$f":"VLOOKUP($AE99,#REF!,7,FALSE)","v":{"$error":"#REF!"}}]
[null,null,null,null,null,null,null,null,null,null,null,null,null,null,null,null,null,null,null,null,null,null,null,null,null,null,null,null,null,null,"Stuart Appleby",null,{"$f":"VLOOKUP($AE100,#REF!,6,FALSE)","v":{"$error":"#REF!"}},{"$f":"VLOOKUP($AE100,#REF!,7,FALSE)","v":{"$error":"#REF!"}}]
[null,null,null,null,null,null,null,null,null,null,null,null,null,null,null,null,null,null,null,null,null,null,null,null,null,null,null,null,null,null,"Tiger Woods",null,{"$f":"VLOOKUP($AE101,#REF!,6,FALSE)","v":{"$error":"#REF!"}},{"$f":"VLOOKUP($AE101,#REF!,7,FALSE)","v":{"$error":"#REF!"}}]
[null,null,null,null,null,null,null,null,null,null,null,null,null,null,null,null,null,null,null,null,null,null,null,null,null,null,null,null,null,null,"Tim Clark",null,{"$f":"VLOOKUP($AE102,#REF!,6,FALSE)","v":{"$error":"#REF!"}},{"$f":"VLOOKUP($AE102,#REF!,7,FALSE)","v":{"$error":"#REF!"}}]
[null,null,null,null,null,null,null,null,null,null,null,null,null,null,null,null,null,null,null,null,null,null,null,null,null,null,null,null,null,null,"Todd Hamilton",null,{"$f":"VLOOKUP($AE103,#REF!,6,FALSE)","v":{"$error":"#REF!"}},{"$f":"VLOOKUP($AE103,#REF!,7,FALSE)","v":{"$error":"#REF!"}}]
[null,null,null,null,null,null,null,null,null,null,null,null,null,null,null,null,null,null,null,null,null,null,null,null,null,null,null,null,null,null,"Tom Watson",null,{"$f":"VLOOKUP($AE104,#REF!,6,FALSE)","v":{"$error":"#REF!"}},{"$f":"VLOOKUP($AE104,#REF!,7,FALSE)","v":{"$error":"#REF!"}}]
[null,null,null,null,null,null,null,null,null,null,null,null,null,null,null,null,null,null,null,null,null,null,null,null,null,null,null,null,null,null,"Trevor Immelman",null,{"$f":"VLOOKUP($AE105,#REF!,6,FALSE)","v":{"$error":"#REF!"}},{"$f":"VLOOKUP($AE105,#REF!,7,FALSE)","v":{"$error":"#REF!"}}]
[null,null,null,null,null,null,null,null,null,null,null,null,null,null,null,null,null,null,null,null,null,null,null,null,null,null,null,null,null,null,"Vijay Singh",null,{"$f":"VLOOKUP($AE106,#REF!,6,FALSE)","v":{"$error":"#REF!"}},{"$f":"VLOOKUP($AE106,#REF!,7,FALSE)","v":{"$error":"#REF!"}}]
[null,null,null,null,null,null,null,null,null,null,null,null,null,null,null,null,null,null,null,null,null,null,null,null,null,null,null,null,null,null,"Wen-Tang Lin",null,{"$f":"VLOOKUP($AE107,#REF!,6,FALSE)","v":{"$error":"#REF!"}},{"$f":"VLOOKUP($AE107,#REF!,7,FALSE)","v":{"$error":"#REF!"}}]
[null,null,null,null,null,null,null,null,null,null,null,null,null,null,null,null,null,null,null,null,null,null,null,null,null,null,null,null,null,null,"Y.E. Yang",null,{"$f":"VLOOKUP($AE108,#REF!,6,FALSE)","v":{"$error":"#REF!"}},{"$f":"VLOOKUP($AE108,#REF!,7,FALSE)","v":{"$error":"#REF!"}}]
[null,null,null,null,null,null,null,null,null,null,null,null,null,null,null,null,null,null,null,null,null,null,null,null,null,null,null,null,null,null,"Zach Johnson",null,{"$f":"VLOOKUP($AE109,#REF!,6,FALSE)","v":{"$error":"#REF!"}},{"$f":"VLOOKUP($AE109,#REF!,7,FALSE)","v":{"$error":"#REF!"}}]

{"sheet":"2008","index":3,"n_rows":106,"n_cols":35,"rows_kept":106,"cut":false,"hidden":false,"merged":[[0,0,5,0],[0,1,5,27],[6,1,9,1],[6,2,8,2],[6,3,8,3],[6,4,8,4],[6,5,8,5],[6,6,8,6],[6,7,8,7],[6,8,8,8],[46,1,46,28],[6,23,8,23],[6,11,8,11],[6,14,8,14],[6,15,8,15],[6,18,8,18],[6,22,8,22],[42,0,42,28],[43,1,43,28],[6,24,8,24],[6,27,8,27],[8,0,10,0],[6,12,8,12],[6,17,8,17],[6,10,8,10],[6,13,8,13],[6,19,8,19],[44,1,44,28],[45,1,45,28],[6,25,8,25],[6,26,8,26],[6,20,8,20],[6,21,8,21],[6,9,8,9],[6,16,8,16],[6,28,10,28]]}
[null,"Masters Friday 2008"]
[]
[]
[]
[]
[]
[null,"Pine Forest Score","HARNGTN","FURYK","WEIR","SCOTT","MIEKLSN","GOOSEN","APPLEBY","ROSE","BADDLEY","STRICKR","DONALD","POULTER","STENSON","SINGH","SABATNI","AMES","OGILVY","ELS","JOHNSON","IMMELMN","SNDEKER","OLAZBAL","CASEY","CHOI","COUPLES","ROMERO","Combined MFC & PGA Totals"]
[]
["MFC Golfer"]
[null,null,-1,1,-4,-1,-4,-1,-2,6,1,5,3,-3,1,-1,2,-2,-1,2,4,-4,-4,3,-3,3,"E","E"]
[null,"Thru","F","F","F","F","F","F","F","F","F","F","F","F","F","F","F","F","F","F","F","F","F","F","F","F","F","F"]
["Walter Smedley**",-9,null,null,null,null,null,null,null,null,null,null,null,{"$f":"N$10","v":-3},null,null,null,null,null,null,null,null,{"$f":"W$10","v":-4},null,null,null,null,null,{"$f":"SUM(B12:AB12)","v":-16}]
["Heidi Walter",-9,null,null,{"$f":"E$10","v":-4},{"$f":"F$10","v":-1},null,null,null,null,null,null,null,null,null,null,null,null,null,null,null,null,null,null,null,null,null,null,-14]
["Davis Scarborough",-5,null,null,null,null,{"$f":"G$10","v":-4},null,null,null,null,null,null,null,null,null,null,null,null,null,null,{"$f":"V$10","v":-4},null,null,null,null,null,null,-13,null,null,"Aaron Baddeley",null,{"$f":"VLOOKUP($AF14,#REF!,4,FALSE)","v":{"$error":"#REF!"}},{"$f":"VLOOKUP($AF14,#REF!,3,FALSE)","v":{"$error":"#REF!"}}]
["Craig Heiser",-9,null,null,null,null,null,null,null,null,null,null,null,null,null,null,null,null,null,null,null,null,null,null,{"$f":"Y$10","v":-3},null,null,{"$f":"AB$10","v":"E"},-12,null,null,"Adam Scott",null,{"$f":"VLOOKUP(AF15,#REF!,4,FALSE)","v":{"$error":"#REF!"}},{"$f":"VLOOKUP($AF15,#REF!,3,FALSE)","v":{"$error":"#REF!"}}]
["Jenny Murdock",-4,null,null,{"$f":"E$10","v":-4},null,{"$f":"G$10","v":-4},null,null,null,null,null,null,null,null,null,null,null,null,null,null,null,null,null,null,null,null,null,-12,null,null,"Anders Hansen",null,{"$f":"VLOOKUP(AF16,#REF!,4,FALSE)","v":{"$error":"#REF!"}},{"$f":"VLOOKUP($AF16,#REF!,3,FALSE)","v":{"$error":"#REF!"}}]
["Travis Lauritsen",-11,null,null,null,null,null,null,null,null,null,null,null,null,{"$f":"O$10","v":1},null,null,null,{"$f":"S$10","v":-1},null,null,null,null,null,null,null,null,null,-11,null,null,"Andres Romero",null,{"$f":"VLOOKUP(AF17,#REF!,4,FALSE)","v":{"$error":"#REF!"}},{"$f":"VLOOKUP($AF17,#REF!,3,FALSE)","v":{"$error":"#REF!"}}]
["Peter Dennis",-12,null,null,null,null,null,null,null,null,null,null,{"$f":"M$10","v":3},null,null,null,null,null,{"$f":"S$10","v":-1},null,null,null,null,null,null,null,null,null,-10,null,null,"Angel Cabrera",null,{"$f":"VLOOKUP(AF18,#REF!,4,FALSE)","v":{"$error":"#REF!"}},{"$f":"VLOOKUP($AF18,#REF!,3,FALSE)","v":{"$error":"#REF!"}}]
["Ric Booth ",-7,null,null,null,null,null,{"$f":"H$10","v":-1},null,null,null,null,null,null,null,null,null,null,{"$f":"S$10","v":-1},null,null,null,null,null,null,null,null,null,-9,null,null,"Arron Oberholser",null,{"$f":"VLOOKUP(AF19,#REF!,4,FALSE)","v":{"$error":"#REF!"}},{"$f":"VLOOKUP($AF19,#REF!,3,FALSE)","v":{"$error":"#REF!"}}]
["Andy Turner",-6,null,null,null,null,null,{"$f":"H$10","v":-1},null,null,null,null,null,null,null,null,null,{"$f":"R$10","v":-2},null,null,null,null,null,null,null,null,null,null,-9,null,null,"Ben Crenshaw",null,{"$f":"VLOOKUP(AF20,#REF!,4,FALSE)","v":{"$error":"#REF!"}},{"$f":"VLOOKUP($AF20,#REF!,3,FALSE)","v":{"$error":"#REF!"}}]
["Ken Nibling",-6,null,null,null,null,{"$f":"G$10","v":-4},null,null,null,null,null,null,null,null,null,null,null,null,{"$f":"T$10","v":2},null,null,null,null,null,null,null,null,-8,null,null,"Ben Curtis",null,{"$f":"VLOOKUP(AF21,#REF!,4,FALSE)","v":{"$error":"#REF!"}},{"$f":"VLOOKUP($AF21,#REF!,3,FALSE)","v":{"$error":"#REF!"}}]
["Steve Robinson",-5,null,{"$f":"D$10","v":1},null,null,null,null,null,null,null,null,null,null,null,null,null,null,null,null,null,null,{"$f":"W$10","v":-4},null,null,null,null,null,-8,null,null,"Bernhard Langer",null,{"$f":"VLOOKUP(AF22,#REF!,4,FALSE)","v":{"$error":"#REF!"}},{"$f":"VLOOKUP($AF22,#REF!,3,FALSE)","v":{"$error":"#REF!"}}]
["Tom Pope",-5,null,null,null,null,null,{"$f":"H$10","v":-1},{"$f":"I$10","v":-2},null,null,null,null,null,null,null,null,null,null,null,null,null,null,null,null,null,null,null,-8,null,null,"Boo Weekley",null,{"$f":"VLOOKUP(AF23,#REF!,4,FALSE)","v":{"$error":"#REF!"}},{"$f":"VLOOKUP($AF23,#REF!,3,FALSE)","v":{"$error":"#REF!"}}]
["Mark Ingebrigtson",-11,{"$f":"C$10","v":-1},null,null,null,null,null,null,null,null,{"$f":"L$10","v":5},null,null,null,null,null,null,null,null,null,null,null,null,null,null,null,null,-7,null,null,"Brandt Snedeker",null,{"$f":"VLOOKUP(AF24,#REF!,4,FALSE)","v":{"$error":"#REF!"}},{"$f":"VLOOKUP($AF24,#REF!,3,FALSE)","v":{"$error":"#REF!"}}]
["Mike Walter",-6,{"$f":"C$10","v":-1},{"$f":"D$10","v":1},null,null,null,null,null,null,null,null,null,null,null,null,null,null,null,null,null,null,null,null,null,null,null,null,-6,null,null,"Brett Wetterich",null,{"$f":"VLOOKUP(AF25,#REF!,4,FALSE)","v":{"$error":"#REF!"}},{"$f":"VLOOKUP($AF25,#REF!,3,FALSE)","v":{"$error":"#REF!"}}]
["Jeff Miers",-5,null,null,null,null,null,null,null,null,null,null,null,null,null,null,null,null,null,null,null,{"$f":"V$10","v":-4},null,null,null,{"$f":"Z$10","v":3},null,null,-6,null,null,"Brian Bateman",null,{"$f":"VLOOKUP(AF26,#REF!,4,FALSE)","v":{"$error":"#REF!"}},{"$f":"VLOOKUP($AF26,#REF!,3,FALSE)","v":{"$error":"#REF!"}}]
["Scott Turner",-1,null,null,null,{"$f":"F$10","v":-1},{"$f":"G$10","v":-4},null,null,null,null,null,null,null,null,null,null,null,null,null,null,null,null,null,null,null,null,null,-6,null,null,"Bubba Watson",null,{"$f":"VLOOKUP(AF27,#REF!,4,FALSE)","v":{"$error":"#REF!"}},{"$f":"VLOOKUP($AF27,#REF!,3,FALSE)","v":{"$error":"#REF!"}}]
["Mike Gandolfo**",-5,null,null,{"$f":"E$10","v":-4},null,null,null,null,null,null,null,null,null,null,null,null,null,null,null,{"$f":"U$10","v":4},null,null,null,null,null,null,null,-5,null,null,"Camilo Villegas",null,{"$f":"VLOOKUP(AF28,#REF!,4,FALSE)","v":{"$error":"#REF!"}},{"$f":"VLOOKUP($AF28,#REF!,3,FALSE)","v":{"$error":"#REF!"}}]
["Danny Tinkler",0,null,null,null,null,{"$f":"G$10","v":-4},null,null,null,null,null,null,null,null,{"$f":"P$10","v":-1},null,null,null,null,null,null,null,null,null,null,null,null,-5,null,null,"Charles Howell III",null,{"$f":"VLOOKUP(AF29,#REF!,4,FALSE)","v":{"$error":"#REF!"}},{"$f":"VLOOKUP($AF29,#REF!,3,FALSE)","v":{"$error":"#REF!"}}]
["John Phillips",-7,null,null,null,null,null,null,null,null,null,null,null,null,null,null,null,null,null,null,null,null,null,{"$f":"X$10","v":3},null,null,{"$f":"AA$10","v":"E"},null,-4,null,null,"Craig Stadler",null,{"$f":"VLOOKUP(AF30,#REF!,4,FALSE)","v":{"$error":"#REF!"}},{"$f":"VLOOKUP($AF30,#REF!,3,FALSE)","v":{"$error":"#REF!"}}]
["Don Vrba",-6,null,null,null,null,null,null,null,{"$f":"J$10","v":6},null,null,null,null,null,null,null,null,null,null,null,null,{"$f":"W$10","v":-4},null,null,null,null,null,-4,null,null,"D.J. Trahan",null,{"$f":"VLOOKUP(AF31,#REF!,4,FALSE)","v":{"$error":"#REF!"}},{"$f":"VLOOKUP($AF31,#REF!,3,FALSE)","v":{"$error":"#REF!"}}]
["Matt Blackmon",-1,null,null,null,null,{"$f":"G$10","v":-4},null,null,null,{"$f":"K$10","v":1},null,null,null,null,null,null,null,null,null,null,null,null,null,null,null,null,null,-4,null,null,"Daniel Chopra",null,{"$f":"VLOOKUP(AF32,#REF!,4,FALSE)","v":{"$error":"#REF!"}},{"$f":"VLOOKUP($AF32,#REF!,3,FALSE)","v":{"$error":"#REF!"}}]
["Carl Berlinger**",-7,null,{"$f":"D$10","v":1},null,null,null,null,null,null,null,null,null,null,null,null,null,null,null,null,null,null,null,null,null,{"$f":"Z$10","v":3},null,null,-3,null,null,"David Toms",null,{"$f":"VLOOKUP(AF33,#REF!,4,FALSE)","v":{"$error":"#REF!"}},{"$f":"VLOOKUP($AF33,#REF!,3,FALSE)","v":{"$error":"#REF!"}}]
["Joe Burns",-5,null,null,null,null,null,null,null,null,null,null,null,null,null,null,null,null,{"$f":"S$10","v":-1},null,null,null,null,null,null,{"$f":"Z$10","v":3},null,null,-3,null,null,"Drew Weaver(a)",null,{"$f":"VLOOKUP(AF34,#REF!,4,FALSE)","v":{"$error":"#REF!"}},{"$f":"VLOOKUP($AF34,#REF!,3,FALSE)","v":{"$error":"#REF!"}}]
["Matt Stone",-3,null,null,null,null,{"$f":"G$10","v":-4},null,null,null,null,null,null,null,null,null,null,null,null,null,{"$f":"U$10","v":4},null,null,null,null,null,null,null,-3,null,null,"Ernie Els",null,{"$f":"VLOOKUP(AF35,#REF!,4,FALSE)","v":{"$error":"#REF!"}},{"$f":"VLOOKUP($AF35,#REF!,3,FALSE)","v":{"$error":"#REF!"}}]
["Tim Waikem",-2,null,null,null,null,null,null,null,null,null,null,null,null,null,{"$f":"P$10","v":-1},null,null,null,null,null,null,null,null,null,null,{"$f":"AA$10","v":"E"},null,-3,null,null,"Fred Couples",null,{"$f":"VLOOKUP(AF36,#REF!,4,FALSE)","v":{"$error":"#REF!"}},{"$f":"VLOOKUP($AF36,#REF!,3,FALSE)","v":{"$error":"#REF!"}}]
["Eric Lauritzen**",0,null,{"$f":"D$10","v":1},null,null,{"$f":"G$10","v":-4},null,null,null,null,null,null,null,null,null,null,null,null,null,null,null,null,null,null,null,null,null,-3,null,null,"Fuzzy Zoeller",null,{"$f":"VLOOKUP(AF37,#REF!,4,FALSE)","v":{"$error":"#REF!"}},{"$f":"VLOOKUP($AF37,#REF!,3,FALSE)","v":{"$error":"#REF!"}}]
["Windol Cook",-3,null,null,null,null,null,null,null,null,null,null,null,null,null,null,null,null,{"$f":"S$10","v":-1},null,null,null,null,null,null,{"$f":"Z$10","v":3},null,null,-1,null,null,"Gary Player",null,{"$f":"VLOOKUP(AF38,#REF!,4,FALSE)","v":{"$error":"#REF!"}},{"$f":"VLOOKUP($AF38,#REF!,3,FALSE)","v":{"$error":"#REF!"}}]
["Peter Vescovo",-1,null,{"$f":"D$10","v":1},null,null,null,{"$f":"H$10","v":-1},null,null,null,null,null,null,null,null,null,null,null,null,null,null,null,null,null,null,null,null,-1,null,null,"Geoff Ogilvy",null,{"$f":"VLOOKUP(AF39,#REF!,4,FALSE)","v":{"$error":"#REF!"}},{"$f":"VLOOKUP($AF39,#REF!,3,FALSE)","v":{"$error":"#REF!"}}]
["Mark Murdock",-8,null,null,null,null,null,null,null,{"$f":"J$10","v":6},null,null,null,null,null,null,{"$f":"Q$10","v":2},null,null,null,null,null,null,null,null,null,null,null,0,null,null,"Heath Slocum",null,{"$f":"VLOOKUP(AF40,#REF!,4,FALSE)","v":{"$error":"#REF!"}},{"$f":"VLOOKUP($AF40,#REF!,3,FALSE)","v":{"$error":"#REF!"}}]
["Greg Watkins",-7,null,null,null,null,null,null,null,null,null,{"$f":"L$10","v":5},null,null,null,null,null,null,null,null,null,null,null,null,null,{"$f":"Z$10","v":3},null,null,1,null,null,"Henrik Stenson",null,{"$f":"VLOOKUP(AF41,#REF!,4,FALSE)","v":{"$error":"#REF!"}},{"$f":"VLOOKUP($AF41,#REF!,3,FALSE)","v":{"$error":"#REF!"}}]
["Gene Brumbelow",-3,null,null,null,null,null,null,null,null,null,{"$f":"L$10","v":5},null,null,null,null,null,null,{"$f":"S$10","v":-1},null,null,null,null,null,null,null,null,null,1,null,null,"Ian Poulter",null,{"$f":"VLOOKUP(AF42,#REF!,4,FALSE)","v":{"$error":"#REF!"}},{"$f":"VLOOKUP($AF42,#REF!,3,FALSE)","v":{"$error":"#REF!"}}]
[null,null,null,null,null,null,null,null,null,null,null,null,null,null,null,null,null,null,null,null,null,null,null,null,null,null,null,null,null,null,null,"Ian Woosnam",null,{"$f":"VLOOKUP(AF43,#REF!,4,FALSE)","v":{"$error":"#REF!"}},{"$f":"VLOOKUP($AF43,#REF!,3,FALSE)","v":{"$error":"#REF!"}}]
["Format:","Shizzle",null,null,null,null,null,null,null,null,null,null,null,null,null,null,null,null,null,null,null,null,null,null,null,null,null,null,null,null,null,"J.B. Holmes",null,{"$f":"VLOOKUP(AF44,#REF!,4,FALSE)","v":{"$error":"#REF!"}},{"$f":"VLOOKUP($AF44,#REF!,3,FALSE)","v":{"$error":"#REF!"}}]
["Venue:","Pine Forest (Green to White)",null,null,null,null,null,null,null,null,null,null,null,null,null,null,null,null,null,null,null,null,null,null,null,null,null,null,null,null,null,"Jeev Milkha Singh",null,{"$f":"VLOOKUP(AF45,#REF!,4,FALSE)","v":{"$error":"#REF!"}},{"$f":"VLOOKUP($AF45,#REF!,3,FALSE)","v":{"$error":"#REF!"}}]
["MFC Champion:","Walter \"Smeds\" Smedley (Guest from Merion CC)",null,null,null,null,null,null,null,null,null,null,null,null,null,null,null,null,null,null,null,null,null,null,null,null,null,null,null,null,null,"Jerry Kelly",null,{"$f":"VLOOKUP(AF46,#REF!,4,FALSE)","v":{"$error":"#REF!"}},{"$f":"VLOOKUP($AF46,#REF!,3,FALSE)","v":{"$error":"#REF!"}}]
["Masters Winners:","Weir, Mickleson, Immelman, Snedeker (-4)",null,null,null,null,null,null,null,null,null,null,null,null,null,null,null,null,null,null,null,null,null,null,null,null,null,null,null,null,null,"Jim Furyk",null,{"$f":"VLOOKUP(AF47,#REF!,4,FALSE)","v":{"$error":"#REF!"}},{"$f":"VLOOKUP($AF47,#REF!,3,FALSE)","v":{"$error":"#REF!"}}]
[null,null,null,null,null,null,null,null,null,null,null,null,null,null,null,null,null,null,null,null,null,null,null,null,null,null,null,null,null,null,null,"John Rollins",null,{"$f":"VLOOKUP(AF48,#REF!,4,FALSE)","v":{"$error":"#REF!"}},{"$f":"VLOOKUP($AF48,#REF!,3,FALSE)","v":{"$error":"#REF!"}}]
[null,null,null,null,null,null,null,null,null,null,null,null,null,null,null,null,null,null,null,null,null,null,null,null,null,null,null,null,null,null,null,"John Senden",null,{"$f":"VLOOKUP(AF49,#REF!,4,FALSE)","v":{"$error":"#REF!"}},{"$f":"VLOOKUP($AF49,#REF!,3,FALSE)","v":{"$error":"#REF!"}}]
[null,null,null,null,null,null,null,null,null,null,null,null,null,null,null,null,null,null,null,null,null,null,null,null,null,null,null,null,null,null,null,"Johnson Wagner",null,{"$f":"VLOOKUP(AF50,#REF!,4,FALSE)","v":{"$error":"#REF!"}},{"$f":"VLOOKUP($AF50,#REF!,3,FALSE)","v":{"$error":"#REF!"}}]
[null,null,null,null,null,null,null,null,null,null,null,null,null,null,null,null,null,null,null,null,null,null,null,null,null,null,null,null,null,null,null,"Jonathan Byrd",null,{"$f":"VLOOKUP(AF51,#REF!,4,FALSE)","v":{"$error":"#REF!"}},{"$f":"VLOOKUP($AF51,#REF!,3,FALSE)","v":{"$error":"#REF!"}}]
[null,null,null,null,null,null,null,null,null,null,null,null,null,null,null,null,null,null,null,null,null,null,null,null,null,null,null,null,null,null,null,"Jose Maria Olazabal",null,{"$f":"VLOOKUP(AF52,#REF!,4,FALSE)","v":{"$error":"#REF!"}},{"$f":"VLOOKUP($AF52,#REF!,3,FALSE)","v":{"$error":"#REF!"}}]
[null,null,null,null,null,null,null,null,null,null,null,null,null,null,null,null,null,null,null,null,null,null,null,null,null,null,null,null,null,null,null,"Justin Leonard",null,{"$f":"VLOOKUP(AF53,#REF!,4,FALSE)","v":{"$error":"#REF!"}},{"$f":"VLOOKUP($AF53,#REF!,3,FALSE)","v":{"$error":"#REF!"}}]
[null,null,null,null,null,null,null,null,null,null,null,null,null,null,null,null,null,null,null,null,null,null,null,null,null,null,null,null,null,null,null,"Justin Rose",null,{"$f":"VLOOKUP(AF54,#REF!,4,FALSE)","v":{"$error":"#REF!"}},{"$f":"VLOOKUP($AF54,#REF!,3,FALSE)","v":{"$error":"#REF!"}}]
[null,null,null,null,null,null,null,null,null,null,null,null,null,null,null,null,null,null,null,null,null,null,null,null,null,null,null,null,null,null,null,"K.J. Choi",null,{"$f":"VLOOKUP(AF55,#REF!,4,FALSE)","v":{"$error":"#REF!"}},{"$f":"VLOOKUP($AF55,#REF!,3,FALSE)","v":{"$error":"#REF!"}}]
[null,null,null,null,null,null,null,null,null,null,null,null,null,null,null,null,null,null,null,null,null,null,null,null,null,null,null,null,null,null,null,"Larry Mize",null,{"$f":"VLOOKUP(AF56,#REF!,4,FALSE)","v":{"$error":"#REF!"}},{"$f":"VLOOKUP($AF56,#REF!,3,FALSE)","v":{"$error":"#REF!"}}]
[null,null,null,null,null,null,null,null,null,null,null,null,null,null,null,null,null,null,null,null,null,null,null,null,null,null,null,null,null,null,null,"Lee Westwood",null,{"$f":"VLOOKUP(AF57,#REF!,4,FALSE)","v":{"$error":"#REF!"}},{"$f":"VLOOKUP($AF57,#REF!,3,FALSE)","v":{"$error":"#REF!"}}]
[null,null,null,null,null,null,null,null,null,null,null,null,null,null,null,null,null,null,null,null,null,null,null,null,null,null,null,null,null,null,null,"Luke Donald",null,{"$f":"VLOOKUP(AF58,#REF!,4,FALSE)","v":{"$error":"#REF!"}},{"$f":"VLOOKUP($AF58,#REF!,3,FALSE)","v":{"$error":"#REF!"}}]
[null,null,null,null,null,null,null,null,null,null,null,null,null,null,null,null,null,null,null,null,null,null,null,null,null,null,null,null,null,null,null,"Mark Calcavecchia",null,{"$f":"VLOOKUP(AF59,#REF!,4,FALSE)","v":{"$error":"#REF!"}},{"$f":"VLOOKUP($AF59,#REF!,3,FALSE)","v":{"$error":"#REF!"}}]
[null,null,null,null,null,null,null,null,null,null,null,null,null,null,null,null,null,null,null,null,null,null,null,null,null,null,null,null,null,null,null,"Mark O'Meara",null,{"$f":"VLOOKUP(AF60,#REF!,4,FALSE)","v":{"$error":"#REF!"}},{"$f":"VLOOKUP($AF60,#REF!,3,FALSE)","v":{"$error":"#REF!"}}]
[null,null,null,null,null,null,null,null,null,null,null,null,null,null,null,null,null,null,null,null,null,null,null,null,null,null,null,null,null,null,null,"Martin Kaymer",null,{"$f":"VLOOKUP(AF61,#REF!,4,FALSE)","v":{"$error":"#REF!"}},{"$f":"VLOOKUP($AF61,#REF!,3,FALSE)","v":{"$error":"#REF!"}}]
[null,null,null,null,null,null,null,null,null,null,null,null,null,null,null,null,null,null,null,null,null,null,null,null,null,null,null,null,null,null,null,"Michael Campbell",null,{"$f":"VLOOKUP(AF62,#REF!,4,FALSE)","v":{"$error":"#REF!"}},{"$f":"VLOOKUP($AF62,#REF!,3,FALSE)","v":{"$error":"#REF!"}}]
[null,null,null,null,null,null,null,null,null,null,null,null,null,null,null,null,null,null,null,null,null,null,null,null,null,null,null,null,null,null,null,"Michael Thompson(a)",null,{"$f":"VLOOKUP(AF63,#REF!,4,FALSE)","v":{"$error":"#REF!"}},{"$f":"VLOOKUP($AF63,#REF!,3,FALSE)","v":{"$error":"#REF!"}}]
[null,null,null,null,null,null,null,null,null,null,null,null,null,null,null,null,null,null,null,null,null,null,null,null,null,null,null,null,null,null,null,"Miguel Angel Jimenez",null,{"$f":"VLOOKUP(AF64,#REF!,4,FALSE)","v":{"$error":"#REF!"}},{"$f":"VLOOKUP($AF64,#REF!,3,FALSE)","v":{"$error":"#REF!"}}]
[null,null,null,null,null,null,null,null,null,null,null,null,null,null,null,null,null,null,null,null,null,null,null,null,null,null,null,null,null,null,null,"Mike Weir",null,{"$f":"VLOOKUP(AF65,#REF!,4,FALSE)","v":{"$error":"#REF!"}},{"$f":"VLOOKUP($AF65,#REF!,3,FALSE)","v":{"$error":"#REF!"}}]
[null,null,null,null,null,null,null,null,null,null,null,null,null,null,null,null,null,null,null,null,null,null,null,null,null,null,null,null,null,null,null,"Nick Dougherty",null,{"$f":"VLOOKUP(AF66,#REF!,4,FALSE)","v":{"$error":"#REF!"}},{"$f":"VLOOKUP($AF66,#REF!,3,FALSE)","v":{"$error":"#REF!"}}]
[null,null,null,null,null,null,null,null,null,null,null,null,null,null,null,null,null,null,null,null,null,null,null,null,null,null,null,null,null,null,null,"Nick O'Hern",null,{"$f":"VLOOKUP(AF67,#REF!,4,FALSE)","v":{"$error":"#REF!"}},{"$f":"VLOOKUP($AF67,#REF!,3,FALSE)","v":{"$error":"#REF!"}}]
[null,null,null,null,null,null,null,null,null,null,null,null,null,null,null,null,null,null,null,null,null,null,null,null,null,null,null,null,null,null,null,"Nick Watney",null,{"$f":"VLOOKUP(AF68,#REF!,4,FALSE)","v":{"$error":"#REF!"}},{"$f":"VLOOKUP($AF68,#REF!,3,FALSE)","v":{"$error":"#REF!"}}]
[null,null,null,null,null,null,null,null,null,null,null,null,null,null,null,null,null,null,null,null,null,null,null,null,null,null,null,null,null,null,null,"Niclas Fasth",null,{"$f":"VLOOKUP(AF69,#REF!,4,FALSE)","v":{"$error":"#REF!"}},{"$f":"VLOOKUP($AF69,#REF!,3,FALSE)","v":{"$error":"#REF!"}}]
[null,null,null,null,null,null,null,null,null,null,null,null,null,null,null,null,null,null,null,null,null,null,null,null,null,null,null,null,null,null,null,"Padraig Harrington",null,{"$f":"VLOOKUP(AF70,#REF!,4,FALSE)","v":{"$error":"#REF!"}},{"$f":"VLOOKUP($AF70,#REF!,3,FALSE)","v":{"$error":"#REF!"}}]
[null,null,null,null,null,null,null,null,null,null,null,null,null,null,null,null,null,null,null,null,null,null,null,null,null,null,null,null,null,null,null,"Paul Casey",null,{"$f":"VLOOKUP(AF71,#REF!,4,FALSE)","v":{"$error":"#REF!"}},{"$f":"VLOOKUP($AF71,#REF!,3,FALSE)","v":{"$error":"#REF!"}}]
[null,null,null,null,null,null,null,null,null,null,null,null,null,null,null,null,null,null,null,null,null,null,null,null,null,null,null,null,null,null,null,"Peter Lonard",null,{"$f":"VLOOKUP(AF72,#REF!,4,FALSE)","v":{"$error":"#REF!"}},{"$f":"VLOOKUP($AF72,#REF!,3,FALSE)","v":{"$error":"#REF!"}}]
[null,null,null,null,null,null,null,null,null,null,null,null,null,null,null,null,null,null,null,null,null,null,null,null,null,null,null,null,null,null,null,"Phil Mickelson",null,{"$f":"VLOOKUP(AF73,#REF!,4,FALSE)","v":{"$error":"#REF!"}},{"$f":"VLOOKUP($AF73,#REF!,3,FALSE)","v":{"$error":"#REF!"}}]
[null,null,null,null,null,null,null,null,null,null,null,null,null,null,null,null,null,null,null,null,null,null,null,null,null,null,null,null,null,null,null,"Prayad Marksaeng",null,{"$f":"VLOOKUP(AF74,#REF!,4,FALSE)","v":{"$error":"#REF!"}},{"$f":"VLOOKUP($AF74,#REF!,3,FALSE)","v":{"$error":"#REF!"}}]
[null,null,null,null,null,null,null,null,null,null,null,null,null,null,null,null,null,null,null,null,null,null,null,null,null,null,null,null,null,null,null,"Raymond Floyd",null,{"$f":"VLOOKUP(AF75,#REF!,4,FALSE)","v":{"$error":"#REF!"}},{"$f":"VLOOKUP($AF75,#REF!,3,FALSE)","v":{"$error":"#REF!"}}]
[null,null,null,null,null,null,null,null,null,null,null,null,null,null,null,null,null,null,null,null,null,null,null,null,null,null,null,null,null,null,null,"Retief Goosen",null,{"$f":"VLOOKUP(AF76,#REF!,4,FALSE)","v":{"$error":"#REF!"}},{"$f":"VLOOKUP($AF76,#REF!,3,FALSE)","v":{"$error":"#REF!"}}]
[null,null,null,null,null,null,null,null,null,null,null,null,null,null,null,null,null,null,null,null,null,null,null,null,null,null,null,null,null,null,null,"Richard Green",null,{"$f":"VLOOKUP(AF77,#REF!,4,FALSE)","v":{"$error":"#REF!"}},{"$f":"VLOOKUP($AF77,#REF!,3,FALSE)","v":{"$error":"#REF!"}}]
[null,null,null,null,null,null,null,null,null,null,null,null,null,null,null,null,null,null,null,null,null,null,null,null,null,null,null,null,null,null,null,"Richard Sterne",null,{"$f":"VLOOKUP(AF78,#REF!,4,FALSE)","v":{"$error":"#REF!"}},{"$f":"VLOOKUP($AF78,#REF!,3,FALSE)","v":{"$error":"#REF!"}}]
[null,null,null,null,null,null,null,null,null,null,null,null,null,null,null,null,null,null,null,null,null,null,null,null,null,null,null,null,null,null,null,"Robert Allenby",null,{"$f":"VLOOKUP(AF79,#REF!,4,FALSE)","v":{"$error":"#REF!"}},{"$f":"VLOOKUP($AF79,#REF!,3,FALSE)","v":{"$error":"#REF!"}}]
[null,null,null,null,null,null,null,null,null,null,null,null,null,null,null,null,null,null,null,null,null,null,null,null,null,null,null,null,null,null,null,"Robert Karlsson",null,{"$f":"VLOOKUP(AF80,#REF!,4,FALSE)","v":{"$error":"#REF!"}},{"$f":"VLOOKUP($AF80,#REF!,3,FALSE)","v":{"$error":"#REF!"}}]
[null,null,null,null,null,null,null,null,null,null,null,null,null,null,null,null,null,null,null,null,null,null,null,null,null,null,null,null,null,null,null,"Rory Sabbatini",null,{"$f":"VLOOKUP(AF81,#REF!,4,FALSE)","v":{"$error":"#REF!"}},{"$f":"VLOOKUP($AF81,#REF!,3,FALSE)","v":{"$error":"#REF!"}}]
[null,null,null,null,null,null,null,null,null,null,null,null,null,null,null,null,null,null,null,null,null,null,null,null,null,null,null,null,null,null,null,"Sandy Lyle",null,{"$f":"VLOOKUP(AF82,#REF!,4,FALSE)","v":{"$error":"#REF!"}},{"$f":"VLOOKUP($AF82,#REF!,3,FALSE)","v":{"$error":"#REF!"}}]
[null,null,null,null,null,null,null,null,null,null,null,null,null,null,null,null,null,null,null,null,null,null,null,null,null,null,null,null,null,null,null,"Scott Verplank",null,{"$f":"VLOOKUP(AF83,#REF!,4,FALSE)","v":{"$error":"#REF!"}},{"$f":"VLOOKUP($AF83,#REF!,3,FALSE)","v":{"$error":"#REF!"}}]
[null,null,null,null,null,null,null,null,null,null,null,null,null,null,null,null,null,null,null,null,null,null,null,null,null,null,null,null,null,null,null,"Sean O'Hair",null,{"$f":"VLOOKUP(AF84,#REF!,4,FALSE)","v":{"$error":"#REF!"}},{"$f":"VLOOKUP($AF84,#REF!,3,FALSE)","v":{"$error":"#REF!"}}]
[null,null,null,null,null,null,null,null,null,null,null,null,null,null,null,null,null,null,null,null,null,null,null,null,null,null,null,null,null,null,null,"Sergio Garcia",null,{"$f":"VLOOKUP(AF85,#REF!,4,FALSE)","v":{"$error":"#REF!"}},{"$f":"VLOOKUP($AF85,#REF!,3,FALSE)","v":{"$error":"#REF!"}}]
[null,null,null,null,null,null,null,null,null,null,null,null,null,null,null,null,null,null,null,null,null,null,null,null,null,null,null,null,null,null,null,"Shaun Micheel",null,{"$f":"VLOOKUP(AF86,#REF!,4,FALSE)","v":{"$error":"#REF!"}},{"$f":"VLOOKUP($AF86,#REF!,3,FALSE)","v":{"$error":"#REF!"}}]
[null,null,null,null,null,null,null,null,null,null,null,null,null,null,null,null,null,null,null,null,null,null,null,null,null,null,null,null,null,null,null,"Shingo Katayama",null,{"$f":"VLOOKUP(AF87,#REF!,4,FALSE)","v":{"$error":"#REF!"}},{"$f":"VLOOKUP($AF87,#REF!,3,FALSE)","v":{"$error":"#REF!"}}]
[null,null,null,null,null,null,null,null,null,null,null,null,null,null,null,null,null,null,null,null,null,null,null,null,null,null,null,null,null,null,null,"Soren Hansen",null,{"$f":"VLOOKUP(AF88,#REF!,4,FALSE)","v":{"$error":"#REF!"}},{"$f":"VLOOKUP($AF88,#REF!,3,FALSE)","v":{"$error":"#REF!"}}]
[null,null,null,null,null,null,null,null,null,null,null,null,null,null,null,null,null,null,null,null,null,null,null,null,null,null,null,null,null,null,null,"Stephen Ames",null,{"$f":"VLOOKUP(AF89,#REF!,4,FALSE)","v":{"$error":"#REF!"}},{"$f":"VLOOKUP($AF89,#REF!,3,FALSE)","v":{"$error":"#REF!"}}]
[null,null,null,null,null,null,null,null,null,null,null,null,null,null,null,null,null,null,null,null,null,null,null,null,null,null,null,null,null,null,null,"Steve Flesch",null,{"$f":"VLOOKUP(AF90,#REF!,4,FALSE)","v":{"$error":"#REF!"}},{"$f":"VLOOKUP($AF90,#REF!,3,FALSE)","v":{"$error":"#REF!"}}]
[null,null,null,null,null,null,null,null,null,null,null,null,null,null,null,null,null,null,null,null,null,null,null,null,null,null,null,null,null,null,null,"Steve Lowery",null,{"$f":"VLOOKUP(AF91,#REF!,4,FALSE)","v":{"$error":"#REF!"}},{"$f":"VLOOKUP($AF91,#REF!,3,FALSE)","v":{"$error":"#REF!"}}]
[null,null,null,null,null,null,null,null,null,null,null,null,null,null,null,null,null,null,null,null,null,null,null,null,null,null,null,null,null,null,null,"Steve Stricker",null,{"$f":"VLOOKUP(AF92,#REF!,4,FALSE)","v":{"$error":"#REF!"}},{"$f":"VLOOKUP($AF92,#REF!,3,FALSE)","v":{"$error":"#REF!"}}]
[null,null,null,null,null,null,null,null,null,null,null,null,null,null,null,null,null,null,null,null,null,null,null,null,null,null,null,null,null,null,null,"Stewart Cink",null,{"$f":"VLOOKUP(AF93,#REF!,4,FALSE)","v":{"$error":"#REF!"}},{"$f":"VLOOKUP($AF93,#REF!,3,FALSE)","v":{"$error":"#REF!"}}]
[null,null,null,null,null,null,null,null,null,null,null,null,null,null,null,null,null,null,null,null,null,null,null,null,null,null,null,null,null,null,null,"Stuart Appleby",null,{"$f":"VLOOKUP(AF94,#REF!,4,FALSE)","v":{"$error":"#REF!"}},{"$f":"VLOOKUP($AF94,#REF!,3,FALSE)","v":{"$error":"#REF!"}}]
[null,null,null,null,null,null,null,null,null,null,null,null,null,null,null,null,null,null,null,null,null,null,null,null,null,null,null,null,null,null,null,"Tiger Woods",null,{"$f":"VLOOKUP(AF95,#REF!,4,FALSE)","v":{"$error":"#REF!"}},{"$f":"VLOOKUP($AF95,#REF!,3,FALSE)","v":{"$error":"#REF!"}}]
[null,null,null,null,null,null,null,null,null,null,null,null,null,null,null,null,null,null,null,null,null,null,null,null,null,null,null,null,null,null,null,"Tim Clark",null,{"$f":"VLOOKUP(AF96,#REF!,4,FALSE)","v":{"$error":"#REF!"}},{"$f":"VLOOKUP($AF96,#REF!,3,FALSE)","v":{"$error":"#REF!"}}]
[null,null,null,null,null,null,null,null,null,null,null,null,null,null,null,null,null,null,null,null,null,null,null,null,null,null,null,null,null,null,null,"Todd Hamilton",null,{"$f":"VLOOKUP(AF97,#REF!,4,FALSE)","v":{"$error":"#REF!"}},{"$f":"VLOOKUP($AF97,#REF!,3,FALSE)","v":{"$error":"#REF!"}}]
[null,null,null,null,null,null,null,null,null,null,null,null,null,null,null,null,null,null,null,null,null,null,null,null,null,null,null,null,null,null,null,"Tom Watson",null,{"$f":"VLOOKUP(AF98,#REF!,4,FALSE)","v":{"$error":"#REF!"}},{"$f":"VLOOKUP($AF98,#REF!,3,FALSE)","v":{"$error":"#REF!"}}]
[null,null,null,null,null,null,null,null,null,null,null,null,null,null,null,null,null,null,null,null,null,null,null,null,null,null,null,null,null,null,null,"Toru Taniguchi",null,{"$f":"VLOOKUP(AF99,#REF!,4,FALSE)","v":{"$error":"#REF!"}},{"$f":"VLOOKUP($AF99,#REF!,3,FALSE)","v":{"$error":"#REF!"}}]
[null,null,null,null,null,null,null,null,null,null,null,null,null,null,null,null,null,null,null,null,null,null,null,null,null,null,null,null,null,null,null,"Trevor Immelman",null,{"$f":"VLOOKUP(AF100,#REF!,4,FALSE)","v":{"$error":"#REF!"}},{"$f":"VLOOKUP($AF100,#REF!,3,FALSE)","v":{"$error":"#REF!"}}]
[null,null,null,null,null,null,null,null,null,null,null,null,null,null,null,null,null,null,null,null,null,null,null,null,null,null,null,null,null,null,null,"Trip Kuehne(a)",null,{"$f":"VLOOKUP(AF101,#REF!,4,FALSE)","v":{"$error":"#REF!"}},{"$f":"VLOOKUP($AF101,#REF!,3,FALSE)","v":{"$error":"#REF!"}}]
[null,null,null,null,null,null,null,null,null,null,null,null,null,null,null,null,null,null,null,null,null,null,null,null,null,null,null,null,null,null,null,"Vaughn Taylor",null,{"$f":"VLOOKUP(AF102,#REF!,4,FALSE)","v":{"$error":"#REF!"}},{"$f":"VLOOKUP($AF102,#REF!,3,FALSE)","v":{"$error":"#REF!"}}]
[null,null,null,null,null,null,null,null,null,null,null,null,null,null,null,null,null,null,null,null,null,null,null,null,null,null,null,null,null,null,null,"Vijay Singh",null,{"$f":"VLOOKUP(AF103,#REF!,4,FALSE)","v":{"$error":"#REF!"}},{"$f":"VLOOKUP($AF103,#REF!,3,FALSE)","v":{"$error":"#REF!"}}]
[null,null,null,null,null,null,null,null,null,null,null,null,null,null,null,null,null,null,null,null,null,null,null,null,null,null,null,null,null,null,null,"Wen-Chong Liang",null,{"$f":"VLOOKUP(AF104,#REF!,4,FALSE)","v":{"$error":"#REF!"}},{"$f":"VLOOKUP($AF104,#REF!,3,FALSE)","v":{"$error":"#REF!"}}]
[null,null,null,null,null,null,null,null,null,null,null,null,null,null,null,null,null,null,null,null,null,null,null,null,null,null,null,null,null,null,null,"Woody Austin",null,{"$f":"VLOOKUP(AF105,#REF!,4,FALSE)","v":{"$error":"#REF!"}},{"$f":"VLOOKUP($AF105,#REF!,3,FALSE)","v":{"$error":"#REF!"}}]
[null,null,null,null,null,null,null,null,null,null,null,null,null,null,null,null,null,null,null,null,null,null,null,null,null,null,null,null,null,null,null,"Zach Johnson",null,{"$f":"VLOOKUP(AF106,#REF!,4,FALSE)","v":{"$error":"#REF!"}},{"$f":"VLOOKUP($AF106,#REF!,3,FALSE)","v":{"$error":"#REF!"}}]

{"sheet":"2007","index":4,"n_rows":39,"n_cols":22,"rows_kept":39,"cut":false,"hidden":false,"merged":[[6,16,8,16],[6,15,8,15],[0,0,5,0],[0,1,5,20],[6,2,8,2],[6,3,8,3],[6,4,8,4],[6,5,8,5],[6,18,8,18],[8,0,9,0],[6,1,9,1],[38,1,38,21],[6,8,8,8],[6,17,8,17],[6,11,8,11],[6,12,8,12],[6,9,8,9],[34,0,34,21],[6,20,8,20],[37,1,37,21],[6,13,8,13],[6,6,8,6],[6,7,8,7],[6,14,8,14],[6,21,9,21],[35,1,35,21],[6,19,8,19],[36,1,36,21],[6,10,8,10]]}
[null,"Masters Friday 2007"]
[]
[]
[]
[]
[]
[null,"Pine Forest Score","SINGH","FURYK","MICKELS","ELS","ROSE","OGILVY","SCOTT","DONALD","BADDLEY","GOOSEN","STENSON","LOVE","SABTINI","OLZABL","DIMARCO","BEEM","TOMS","WETRICH","HOWELL","Combined MFC & PGA Totals"]
[]
["MFC Golfer"]
[null,null,-1,-1,1,3,3,-2,6,2,0,4,4,5,4,3,6,9,6,1,5]
["Eric Lauritzen",-7,{"$f":"$C$10","v":-1},null,{"$f":"$E$10","v":1},null,null,null,null,null,null,null,null,null,null,null,null,null,null,null,null,{"$f":"SUM(B11:U11)","v":-7}]
["Mark \"Ingy\"",0,{"$f":"$C$10","v":-1},null,null,null,null,{"$f":"$H$10","v":-2},null,null,null,null,null,null,null,null,null,null,null,null,null,-3]
["Andy Turner",-2,{"$f":"$C$10","v":-1},null,{"$f":"$E$10","v":1},null,null,null,null,null,null,null,null,null,null,null,null,null,null,null,null,-2]
["Peter Dennis",0,{"$f":"$C$10","v":-1},{"$f":"$D$10","v":-1},null,null,null,null,null,null,null,null,null,null,null,null,null,null,null,null,null,-2]
["Tim Waikem",-7,{"$f":"$C$10","v":-1},null,null,null,null,null,null,null,null,null,null,null,null,null,null,null,{"$f":"$S$10","v":6},null,null,-2]
["Gene Brumbelow",-2,null,null,null,null,{"$f":"$G$10","v":3},{"$f":"$H$10","v":-2},null,null,null,null,null,null,null,null,null,null,null,null,null,-1]
["Jenny Murdock",-5,null,{"$f":"$D$10","v":-1},null,null,null,null,null,null,null,null,null,null,null,null,{"$f":"$Q$10","v":6},null,null,null,null,0]
["Mark Murdock",-2,null,{"$f":"$D$10","v":-1},null,null,null,null,null,null,null,null,null,null,null,{"$f":"$P$10","v":3},null,null,null,null,null,0]
["Craig Heiser",-1,null,null,null,null,null,{"$f":"$H$10","v":-2},null,null,null,null,{"$f":"$M$10","v":4},null,null,null,null,null,null,null,null,1]
["Danny Tinkler",-5,null,null,null,null,null,null,null,null,null,null,null,null,null,null,null,null,{"$f":"$S$10","v":6},{"$f":"$T$10","v":1},null,2]
["Jeff Miers",-1,{"$f":"$C$10","v":-1},null,null,null,null,null,null,null,null,null,{"$f":"$M$10","v":4},null,null,null,null,null,null,null,null,2]
["Don Vrba",-1,null,null,null,null,{"$f":"$G$10","v":3},null,null,null,null,null,null,null,null,null,null,null,null,{"$f":"$T$10","v":1},null,3]
["Ken Nibling",-1,null,null,{"$f":"$E$10","v":1},{"$f":"$F$10","v":3},null,null,null,null,null,null,null,null,null,null,null,null,null,null,null,3]
["Waddy Hammond",5,{"$f":"$C$10","v":-1},{"$f":"$D$10","v":-1},null,null,null,null,null,null,null,null,null,null,null,null,null,null,null,null,null,3]
["Brian Porter",-1,{"$f":"$C$10","v":-1},null,null,null,null,null,{"$f":"$I$10","v":6},null,null,null,null,null,null,null,null,null,null,null,null,4]
["Scott Turner",-1,null,null,null,null,null,null,null,null,null,null,null,null,{"$f":"$O$10","v":4},null,null,null,null,{"$f":"$T$10","v":1},null,4]
["Steve Robinson",0,null,null,{"$f":"$E$10","v":1},{"$f":"$F$10","v":3},null,null,null,null,null,null,null,null,null,null,null,null,null,null,null,4]
["Todd Riddle",5,null,null,null,null,null,null,null,{"$f":"$J$10","v":2},{"$f":"$K$10","v":0},null,null,null,null,null,null,null,null,null,null,7]
["Nicole Cooper",4,null,null,null,null,null,{"$f":"$H$10","v":-2},{"$f":"$I$10","v":6},null,null,null,null,null,null,null,null,null,null,null,null,8]
["Tom Pope",-2,null,null,null,null,null,null,{"$f":"$I$10","v":6},null,null,{"$f":"$L$10","v":4},null,null,null,null,null,null,null,null,null,8]
["Ric Booth",0,null,null,null,null,null,null,null,null,null,null,{"$f":"$M$10","v":4},{"$f":"$N$10","v":5},null,null,null,null,null,null,null,9]
["Rene Casadaban",0,null,null,null,null,null,null,null,null,null,null,null,{"$f":"$N$10","v":5},null,null,null,null,null,null,{"$f":"$U$10","v":5},10]
["Greg Watkins",4,null,null,null,null,null,null,null,{"$f":"$J$10","v":2},null,null,null,{"$f":"$N$10","v":5},null,null,null,null,null,null,null,11]
["Mike Gandolfo**",0,null,null,null,null,null,null,null,null,null,null,null,null,null,null,{"$f":"$Q$10","v":6},{"$f":"$R$10","v":9},null,null,null,15]
[]
["Format:","Shamble"]
["Venue:","Pine Forest (Gold Nine/White Nine)"]
["MFC Champion:","Eric Lauritzen"]
["Masters Winners:","Ogilvy (-2); Singh/Furyk (-1)"]

{"sheet":"2006","index":5,"n_rows":38,"n_cols":20,"rows_kept":38,"cut":false,"hidden":false,"merged":[[0,0,5,0],[0,1,5,18],[6,1,9,1],[6,2,8,2],[6,3,8,3],[6,4,8,4],[6,5,8,5],[6,6,8,6],[6,17,8,17],[6,12,8,12],[6,14,8,14],[6,18,8,18],[6,10,8,10],[8,0,9,0],[6,16,8,16],[6,15,8,15],[6,9,8,9],[36,1,36,19],[6,19,9,19],[37,1,37,19],[6,7,8,7],[6,8,8,8],[34,1,34,19],[35,1,35,19],[33,0,33,19],[6,11,8,11],[6,13,8,13]]}
[null,"Masters Friday 2006"]
[]
[]
[]
[]
[]
[null,"Pine Forest Score","CAMBELL","APPLEBY","GOOSEN","CABRERA","GARCIA","MICKELS","OLZABLE","LEHMAN","STENSON","PETERSN","OBELHSR","SINGH","ELS","TOMS","JOHNSON","WEIR","COUPLES","Combined MFC & PGA Totals"]
[]
["MFC Golfer"]
[null,null,-5,3,1,2,2,0,-1,3,2,2,3,2,-1,6,0,1,-2]
["Rene Casadaban",-9,null,null,null,null,null,null,null,null,null,null,null,null,{"$f":"$O$10","v":-1},null,null,null,{"$f":"$S$10","v":-2},{"$f":"SUM(B11:S11)","v":-12}]
["R.L. Trailor",-10,null,null,null,null,null,{"$f":"$H$10","v":0},{"$f":"$I$10","v":-1},null,null,null,null,null,null,null,null,null,null,-11]
["Todd Riddle",-7,{"$f":"$C$10","v":-5},null,{"$f":"$E$10","v":1},null,null,null,null,null,null,null,null,null,null,null,null,null,null,-11]
["Andy Turner",-9,null,null,null,null,null,{"$f":"$H$10","v":0},null,null,null,null,null,null,{"$f":"$O$10","v":-1},null,null,null,null,-10]
["Shawn Wharton",-9,null,null,null,null,null,{"$f":"$H$10","v":0},{"$f":"$I$10","v":-1},null,null,null,null,null,null,null,null,null,null,-10]
["Staton ",-9,null,null,null,null,null,{"$f":"$H$10","v":0},{"$f":"$I$10","v":-1},null,null,null,null,null,null,null,null,null,null,-10]
["Ric Booth",-8,{"$f":"$C$10","v":-5},{"$f":"$D$10","v":3},null,null,null,null,null,null,null,null,null,null,null,null,null,null,null,-10]
["Waddy Hammond",-9,null,null,null,null,null,{"$f":"$H$10","v":0},null,null,null,null,null,null,null,null,{"$f":"$Q$10","v":0},null,null,-9]
["Mike Gandolfo**",-7,{"$f":"$C$10","v":-5},{"$f":"$D$10","v":3},null,null,null,null,null,null,null,null,null,null,null,null,null,null,null,-9]
["Gene Brumbelow",-6,{"$f":"$C$10","v":-5},null,null,{"$f":"$F$10","v":2},null,null,null,null,null,null,null,null,null,null,null,null,null,-9]
["Eric Lauritzen",-9,null,null,{"$f":"$E$10","v":1},null,null,{"$f":"$H$10","v":0},null,null,null,null,null,null,null,null,null,null,null,-8]
["Jenny Murdock",-8,null,null,null,null,{"$f":"$G$10","v":2},{"$f":"$H$10","v":0},null,null,null,null,null,null,null,null,null,null,null,-6]
["Pope",-8,null,null,{"$f":"$E$10","v":1},null,null,null,null,null,null,null,null,null,null,null,null,{"$f":"$R$10","v":1},null,-6]
["Don Vrba",-8,null,null,null,null,null,{"$f":"$H$10","v":0},null,null,null,null,{"$f":"$M$10","v":3},null,null,null,null,null,null,-5]
["John Phillips",-7,null,null,null,null,null,null,{"$f":"$I$10","v":-1},{"$f":"$J$10","v":3},null,null,null,null,null,null,null,null,null,-5]
["Wes Youngblood",-6,null,null,{"$f":"$E$10","v":1},null,null,{"$f":"$H$10","v":0},null,null,null,null,null,null,null,null,null,null,null,-5]
["Howsy",-5,null,null,{"$f":"$E$10","v":1},null,null,null,null,null,null,null,null,null,{"$f":"$O$10","v":-1},null,null,null,null,-5]
["Charlie Wharton",-8,null,null,null,null,null,null,null,null,{"$f":"$K$10","v":2},{"$f":"$L$10","v":2},null,null,null,null,null,null,null,-4]
["Kristin Nibling",-6,null,null,null,null,null,{"$f":"$H$10","v":0},null,null,null,null,null,{"$f":"$N$10","v":2},null,null,null,null,null,-4]
["Steve Robinson",-6,null,null,null,null,null,{"$f":"$H$10","v":0},null,null,null,null,null,{"$f":"$N$10","v":2},null,null,null,null,null,-4]
["Ingy",-9,null,null,null,null,null,{"$f":"$H$10","v":0},null,null,null,null,null,null,null,{"$f":"$P$10","v":6},null,null,null,-3]
["Tim Colson",-8,null,null,null,null,null,null,null,null,null,null,null,null,{"$f":"$O$10","v":-1},{"$f":"$P$10","v":6},null,null,null,-3]
["Mark Murdock",-7,null,{"$f":"$D$10","v":3},null,{"$f":"$F$10","v":2},null,null,null,null,null,null,null,null,null,null,null,null,null,-2]
[]
["Format:","Scramble "]
["Venue:","Pine Forest (Green Nine/Gold Nine)"]
["MFC Champion:","Rene Casadaban"]
["Masters Winners:","Chad Campbell (-5) & Fred Couples (-2)"]

{"sheet":"2005","index":6,"n_rows":17,"n_cols":20,"rows_kept":17,"cut":false,"hidden":false,"merged":[[6,4,8,18],[9,4,9,18],[16,1,16,19],[8,0,9,0],[13,1,13,19],[14,1,14,19],[15,1,15,19],[0,1,5,18],[6,19,9,19],[6,1,9,1],[6,2,8,2],[6,3,8,3]]}
[null,"Masters Friday 2005"]
[]
[]
[]
[]
[]
[null,"Cinco Ranch Score","WOOSS","DIMARCO","<<No Data Available>>",null,null,null,null,null,null,null,null,null,null,null,null,null,null,"Combined MFC & PGA Totals"]
[]
["MFC Golfer"]
[null,null,-6,-5]
["Michael Gandolfo",-7,{"$f":"C10","v":-6},{"$f":"D10","v":-5},null,null,null,null,null,null,null,null,null,null,null,null,null,null,null,{"$f":"SUM(B11:S11)","v":-18}]
[]
[]
["Format:","Scramble "]
["Venue:","The Golf Club At Cinco Ranch"]
["MFC Champion:","Michael Gandolfo"]
["Masters Winners:","Tiger Woods - Chris DiMarco"]

{"sheet":"Augusta","index":7,"n_rows":100,"n_cols":13,"rows_kept":100,"cut":false,"hidden":false,"merged":[]}
["Pos","Name",1,2,3,4,"Today","Thru","Total","Strokes"]
["T1","Rory McIlroy",65,"12:42:00","-","-",-7,"F",-7,65,null,null,"Formula needed for Row 11- Friday scores)"]
["T1","Alvaro Quiros",65,"10:41:00","-","-",-7,"F",-7,65,null,null,"=VLOOKUP(M$7,$AT:$AV,2,FALSE)"]
["T3","Y.E. Yang",67,"08:51:00","-","-",-5,"F",-5,67]
["T3","K.J. Choi",67,"10:19:00","-","-",-5,"F",-5,67,null,null,"Website Accessed in 2011 for MFC"]
["T5","Matt Kuchar",68,"13:26:00","-","-",-4,"F",-4,68,null,null,"http://sports.yahoo.com/golf/pga/players/Tom+Watson/59/scorecard/2011/15"]
["T5","Ricky Barnes",68,"09:13:00","-","-",-4,"F",-4,68]
["T7","Ross Fisher",69,"10:52:00","-","-",-3,"F",-3,69]
["T7","Brandt Snedeker",69,"11:25:00","-","-",-3,"F",-3,69]
["T7","Sergio Garcia",69,"13:59:00","-","-",-3,"F",-3,69]
["T7","Charl Schwartzel",69,"07:45:00","-","-",-3,"F",-3,69]
["T7","Trevor Immelman",69,"08:40:00","-","-",-3,"F",-3,69]
["T7","Geoff Ogilvy",69,"10:30:00","-","-",-3,"F",-3,69]
["T7","Gary Woodland",69,"10:41:00","-","-",-3,"F",-3,69]
["T14","Sean O'Hair",70,"10:52:00","-","-",-2,"F",-2,70]
["T14","Camilo Villegas",70,"11:14:00","-","-",-2,"F",-2,70]
["T14","Gregory Havret",70,"12:20:00","-","-",-2,"F",-2,70]
["T14","Rickie Fowler",70,"12:42:00","-","-",-2,"F",-2,70]
["T14","Hiroyuki Fujita",70,"12:53:00","-","-",-2,"F",-2,70]
["T14","Retief Goosen",70,"12:53:00","-","-",-2,"F",-2,70]
["T14","Kyung-Tae Kim",70,"08:18:00","-","-",-2,"F",-2,70]
["T14","Ryan Moore",70,"08:18:00","-","-",-2,"F",-2,70]
["T14","Paul Casey",70,"09:57:00","-","-",-2,"F",-2,70]
["T14","Phil Mickelson",70,"10:30:00","-","-",-2,"F",-2,70]
["T24","Ryan Palmer",71,"12:20:00","-","-",-1,"F",-1,71]
["T24","Ryo Ishikawa",71,"13:04:00","-","-",-1,"F",-1,71]
["T24","Tiger Woods",71,"13:48:00","-","-",-1,"F",-1,71]
["T24","Angel Cabrera",71,"08:29:00","-","-",-1,"F",-1,71]
["T24","Miguel Angel Jimenez",71,"08:51:00","-","-",-1,"F",-1,71]
["T24","Fred Couples",71,"09:24:00","-","-",-1,"F",-1,71]
["T24","Stewart Cink",71,"10:08:00","-","-",-1,"F",-1,71]
["T31","Alex Cejka",72,"11:03:00","-","-","E","F","E",72]
["T31","David Chung",72,"11:03:00","-","-","E","F","E",72]
["T31","Anders Hansen",72,"11:36:00","-","-","E","F","E",72]
["T31","Heath Slocum",72,"11:36:00","-","-","E","F","E",72]
["T31","Adam Scott",72,"11:47:00","-","-","E","F","E",72]
["T31","Nick Watney",72,"11:47:00","-","-","E","F","E",72]
["T31","Jason Day",72,"12:42:00","-","-","E","F","E",72]
["T31","Lee Westwood",72,"13:26:00","-","-","E","F","E",72]
["T31","Robert Karlsson",72,"13:59:00","-","-","E","F","E",72]
["T31","D.A. Points",72,"07:56:00","-","-","E","F","E",72]
["T31","Peter Hanson",72,"08:18:00","-","-","E","F","E",72]
["T31","David Toms",72,"08:29:00","-","-","E","F","E",72]
["T31","Hideki Matsuyama",72,"08:40:00","-","-","E","F","E",72]
["T31","Luke Donald",72,"09:24:00","-","-","E","F","E",72]
["T31","Steve Stricker",72,"09:24:00","-","-","E","F","E",72]
["T31","Jim Furyk",72,"10:08:00","-","-","E","F","E",72]
["T31","Peter Uihlein",72,"10:30:00","-","-","E","F","E",72]
["T31","Jhonattan Vegas",72,"10:41:00","-","-","E","F","E",72]
["T49","Jonathan Byrd",73,"10:52:00","-","-",1,"F",1,73]
["T49","Sandy Lyle",73,"11:03:00","-","-",1,"F",1,73]
["T49","Jeff Overton",73,"11:14:00","-","-",1,"F",1,73]
["T49","Kevin Na",73,"11:25:00","-","-",1,"F",1,73]
["T49","Tim Clark",73,"12:09:00","-","-",1,"F",1,73]
["T49","Bo Van Pelt",73,"12:31:00","-","-",1,"F",1,73]
["T49","Jin Jeong",73,"13:15:00","-","-",1,"F",1,73]
["T49","Larry Mize",73,"13:15:00","-","-",1,"F",1,73]
["T49","Ben Crane",73,"07:56:00","-","-",1,"F",1,73]
["T49","Zach Johnson",73,"08:51:00","-","-",1,"F",1,73]
["T49","Jose Maria Olazabal",73,"09:02:00","-","-",1,"F",1,73]
["T49","Jason Bohn",73,"09:13:00","-","-",1,"F",1,73]
["T49","Anthony Kim",73,"09:35:00","-","-",1,"F",1,73]
["T49","Bubba Watson",73,"09:57:00","-","-",1,"F",1,73]
["T49","Justin Rose",73,"10:19:00","-","-",1,"F",1,73]
["T64","Jerry Kelly",74,"11:14:00","-","-",2,"F",2,74]
["T64","Dustin Johnson",74,"11:47:00","-","-",2,"F",2,74]
["T64","Martin Laird",74,"12:31:00","-","-",2,"F",2,74]
["T64","Bill Haas",74,"13:04:00","-","-",2,"F",2,74]
["T64","Rory Sabbatini",74,"13:15:00","-","-",2,"F",2,74]
["T64","Graeme McDowell",74,"13:48:00","-","-",2,"F",2,74]
["T64","Charley Hoffman",74,"07:45:00","-","-",2,"F",2,74]
["T64","Ian Poulter",74,"08:29:00","-","-",2,"F",2,74]
["T64","Steve Marino",74,"09:35:00","-","-",2,"F",2,74]
["T64","Edoardo Molinari",74,"09:57:00","-","-",2,"F",2,74]
["T64","Yuta Ikeda",74,"10:08:00","-","-",2,"F",2,74]
["T75","Aaron Baddeley",75,"12:09:00","-","-",3,"F",3,75]
["T75","Carl Pettersson",75,"12:20:00","-","-",3,"F",3,75]
["T75","Ernie Els",75,"13:37:00","-","-",3,"F",3,75]
["T75","Hunter Mahan",75,"13:37:00","-","-",3,"F",3,75]
["T75","Francesco Molinari",75,"13:37:00","-","-",3,"F",3,75]
["T75","Robert Allenby",75,"13:48:00","-","-",3,"F",3,75]
["T75","Stuart Appleby",75,"07:45:00","-","-",3,"F",3,75]
["T75","Nathan Smith",75,"08:07:00","-","-",3,"F",3,75]
["T75","Kevin Streelman",75,"08:07:00","-","-",3,"F",3,75]
["T75","Lucas Glover",75,"08:40:00","-","-",3,"F",3,75]
["T75","Davis Love III",75,"09:02:00","-","-",3,"F",3,75]
["T75","Louis Oosthuizen",75,"10:19:00","-","-",3,"F",3,75]
["T87","Vijay Singh",76,"12:09:00","-","-",4,"F",4,76]
["T87","Mark Wilson",76,"12:31:00","-","-",4,"F",4,76]
["T87","Mike Weir",76,"12:53:00","-","-",4,"F",4,76]
["T87","Lion Kim",76,"09:02:00","-","-",4,"F",4,76]
["T91","Mark O'Meara",77,"11:36:00","-","-",5,"F",5,77]
["T91","Padraig Harrington",77,"13:04:00","-","-",5,"F",5,77]
["T93","Ben Crenshaw",78,"11:25:00","-","-",6,"F",6,78]
["T93","Martin Kaymer",78,"13:26:00","-","-",6,"F",6,78]
["T93","Ian Woosnam",78,"07:56:00","-","-",6,"F",6,78]
[96,"Tom Watson",79,"09:13:00","-","-",7,"F",7,79]
["T97","Arjun Atwal",80,"13:59:00","-","-",8,"F",8,80]
["T97","Craig Stadler",80,"08:07:00","-","-",8,"F",8,80]
[99,"Henrik Stenson",83,"09:35:00","-","-",11,"F",11,83]